Workbook

Sheet 总
A1: 附件1
B2: 三江侗族自治县2025年计划实施财政衔接乡村振兴补助资金项目资金分配明细表
A3: 填报单位 :县衔接资金项目管理工作专班 填报日期：2025年02月13日
A4: 序号 | B4: 项目地点 | D4: 项目名称 | E4: 资金投向 （项目类型） 1.乡村建设行动 2.产业发展 3.项目管理费 4.易地搬迁后扶 5.巩固三保障成果 6.就业项目 | F4: 建设性质 （新建、续建、往年项目资金缺口） | G4: 主要建设内容 （详细说明） | H4: 时间进度计划 （2025年x月--2025年x月） | I4: 项目总投资金额 （万元） | J4: 安排资金文号及规模 | R4: 受益对象 | Z4: 主管部门 | AA4: 实施单位 | AB4: 年度绩效目标 | AC4: 联农带农机制 | AD4: 备注 | AE4: 变动情况说明
J5: 合计 | K5: 原安排资金 | Q5: 本次安排资金
K6: 中央提前批 | L6: 自治区提前批 | M6: 中央二批 | N6: 自治区二批 | O6: 柳州市一批 | P6: 县本级 | Q6: 自治区三批
B7: 乡(镇) 名称 | C7: 行政 村名 | K7: 桂整合 〔2024〕29号 24771万 | L7: 桂整合 〔2024〕29号 10068万 | M7: 桂整合 〔2025〕5号2488万 | N7: 桂整合 〔2025〕5号 5417万 | O7: 柳财预 〔2025〕269号 3561万 | P7: 三财政 〔2025〕1号 2371万 | Q7: 桂整合 〔2025〕16号 610万 | R7: 受益村（个数） | T7: 受益总人数 | V7: 其中：脱贫人口（含监测人员） | X7: 其中：易地搬迁对象 （易安点项目填写）
A8: 合计 | I8: =SUM(I9,I15,I17,I19,I30,I32,I42,I189,I205,I236,I238,I254,I257,I285,I290,I297,I350,I356,I358) -> 51198.41387 | J8: 49286 | K8: 24771 | L8: 10068 | M8: 2488 | N8: 5417 | O8: 3561 | P8: 2371 | Q8: 610 | R8: =SUM(R9,R15,R17,R19,R30,R32,R42,R189,R205,R236,R238,R254,R257,R285,R290,R297,R350,R356,R358) -> 1008 | S8: 1672 | T8: 865265 | U8: 3379420 | V8: 277733 | W8: 1075896 | X8: 63438 | Y8: 247214
A9: 县发改局 | E9: 小计 | I9: =SUM(I10:I14) -> 745.536239 | J9: =SUM(J10:J14) -> 733 | K9: 528 | L9: 70 | M9: 135 | N9: 0 | O9: 0 | P9: 0 | R9: =SUM(R10:R14) -> 2 | S9: 3 | T9: 1479 | U9: 5972 | V9: 415 | W9: 1963 | X9: 19 | Y9: 72
A10: 1 | B10: 丹洲镇 | C10: 板江社区 | D10: 丹洲镇板江社区雷洞屯至麻江屯道路提升工程 | E10: 乡村建设行动 | F10: 新建 | G10: 1、新建桥梁两座：分别为桥梁全长23米，宽5.5米及15米引道；桥梁全长20米，宽5.5米及15米引道。2.新建拦水坝一座，长7米及水渠长25米。3.新建挡土墙三幅，总长130米。 | H10: 2025年1月--2025年12月 | I10: 113.1855 | J10: =K10+L10+P10+M10+N10+O10 -> 113.1855 | K10: 113.1855 | R10: 1 | T10: 172 | U10: 655 | V10: 25 | W10: 85 | X10: 0 | Y10: 0 | Z10: 发改局 | AA10: 丹洲镇 | AB10: 完成桥梁2座，拦水坝1座 | AC10: 改善雷洞屯至麻江屯路段农民群众出行便利，有效提升农产品种植和运输。 | AD10: 以工代赈-提前批
A11: 2 | B11: 梅林乡 | C11: 梅林村 | D11: 梅林乡梅林村平力屯至梅林村梅林屯道路提升工程 | E11: 乡村建设行动 | F11: 新建 | G11: 1、新建6幅挡土墙，总长407米。2、新建60*60排水沟长37米、40*40排水沟长236米、40*40盖板沟长30米。3、新建台阶长48米。4、新建圆管涵长32米。 1、新建挡土墙2幅，总长136米。2、新建40*40排水沟136米。3、路肩硬化110平方米 | H11: 2025年1月--2025年12月 | I11: 113.8812 | J11: =K11+L11+P11+M11+N11+O11 -> 113.8812 | K11: 113.8812 | S11: 1 | T11: 746 | U11: 2873 | V11: 176 | W11: 723 | X11: 14 | Y11: 58 | Z11: 发改局 | AA11: 梅林乡 | AB11: 解决梅林村道路通车问题，改善村基础设施。 | AC11: 改善梅林村平力、岑朗屯的生产生活条件，方便群众出行。 | AD11: 以工代赈-提前批
A12: 3 | B12: 同乐乡 | C12: 归亚村 | D12: 同乐苗族乡归亚村归亚屯习先道路防护工程 | E12: 乡村建设行动 | F12: 新建 | G12: 新建1幅长25米，高4米挡土墙 | H12: 2025年2月--2025年12月 | I12: 17.5366 | J12: =K12+L12+P12+M12+N12+O12 -> 17.5366 | K12: 17.5366 | S12: 1 | T12: 264 | U12: 1178 | V12: 176 | W12: 980 | Z12: 发改局 | AA12: 发改局 | AB12: 解决村屯产业通车问题，改善归亚村基础设施，方便264户1178人出行、满足产业需求 | AC12: 改善归亚村生产条件，促进产业发展，方便群众出行。 | AD12: 以工代赈-提前批
A13: 4 | B13: 古宜镇 | C13: 寨准村 | D13: 古宜镇寨准村六合屯通屯道路工程项目 | E13: 乡村建设行动 | F13: 新建 | G13: 新建桥梁一座，全长62.0m，总宽5.50m，新建道路路面250.3米，路面宽4.5米新建挡土墙5幅共1240m³，新建50涵管44米，新建波形防护栏172米。 | H13: 2025年2月—2025年10月 | I13: 356.3029 | J13: =K13+L13+P13+M13+N13+O13 -> 345 | K13: 140 | L13: 70 | M13: 135 | R13: 1 | T13: 172 | U13: 706 | V13: 18 | W13: 69 | X13: 2 | Y13: 6 | Z13: 发改局 | AA13: 发改局 | AB13: 按时按质按量完成 | AC13: 降低当地村民农业产品运输成本，行人出行安全问题
A14: 5 | B14: 梅林乡 | C14: 新民村 | D14: 梅林乡新民村下寨屯农田水利基础设施建设项目 | E14: 乡村建设行动 | F14: 新建 | G14: 1、30*30水沟维修长505米；2、加拦水坝长9米；3、新建30*30水沟长3米；4、60*60水沟维修长5530米 | H14: 2025年1月--2025年12月 | I14: 144.630039 | J14: =K14+L14+P14+M14+N14+O14 -> 143.3967 | K14: 143.3967 | S14: 1 | T14: 125 | U14: 560 | V14: 20 | W14: 106 | X14: 3 | Y14: 8 | Z14: 发改局 | AA14: 梅林乡 | AB14: 有效解决新民下寨屯水利基础实施，方便群众生产生活，解决125户560人农田用水的问题。 | AC14: 改善新民村生产生活条件，促进产业发展 | AD14: 以工代赈-提前批
A15: 县文联 | C15: 小计 | E15: 小计 | I15: =SUM(I16) -> 400 | J15: =SUM(J16) -> 400 | K15: 0 | L15: 0 | M15: 0 | N15: 0 | O15: 0 | P15: 400 | R15: =SUM(R16) -> 2 | S15: 3 | T15: 1400 | U15: 0 | V15: 0 | W15: 0 | X15: 0 | Y15: 500
A16: 6 | B16: 三江县 | C16: 全县 | D16: 三江侗族自治县农民画产业化发展“强基固本”项目 | E16: 产业发展 | F16: 续建 | G16: 1.培育壮大三江农民画队伍。加大培训力度，持续开展一批农民作者和农民画师提升班培训，促进三江农民画人才梯队式发展，为产业化的发展奠定基础。2.巩固提升三江农民画基地。以基地建设为抓手，完成县民族中学、县民族高中、龙城笔阵基地等场地提升，以基地为窗口，宣传展示三江农民画独特魅力。3.参加全国农民画精品系列巡展。积极创作更多精品，组织参加广西农民画精品进京展及全国各地系列巡展，举办首届怀远杯(三江杯)农民画大赛暨全国农民画精品展，举办农民画文创大赛暨产业化发展论坛，承接2025广西农民画培训成果汇报展暨农民画回乡展（三江县城），提升农民画知名度和美誉度。4.打造三江农民画文化品牌。坚持农民画的传承保护与创新，举办农民画两本书(理论、画册)全区发布会并争取入选东盟图书，举办独峒镇农民画文化艺术节，形成三江文化品牌效应。5.夯实三江农民画全产业基础。坚持以市场为导向，以工业化的理念打造农民画产业链，制定三江农民画传承与发展长期规划，打造一个三江县农民画展览中心，创建三江县农民画产业示范村(程阳村岩寨屯)，健全联农带农益家机制，为产业化的发展奠定基础。 | H16: 2025年1月-2025年12月 | I16: 400 | J16: =K16+L16+P16+M16+N16+O16 -> 400 | P16: 400 | R16: 2 | S16: 3 | T16: 1400 | Y16: 500 | Z16: 文联 | AA16: 三江县文联 | AB16: 三江农民画2012年被列入自治区级非物质文化遗产项目名录，近年来共有近300幅作品在全国、全区文艺展览、赛事中获奖。目前长期从事农民画创作的作者约600人，年产值约为500万元，为脱贫攻坚和乡村振兴助力赋能。通过实施“强基固本”项目，不断提升农民画产业化基础，形成产业链。并以画师培训、巡展宣传、文创推送、提供就业、文旅结合、研学引客、作品展销等方式,受益农户0.14万户0.14万人左右,其中脱贫户、监测户0.05万户0.05万人左右，人均年增收600元左右。 | AC16: 通过作品销售/务工就业/培训指导/文创产品/产业基础配套设施建设/文旅消费/其他等方式，促进农户年增收超过600元左右。
A17: 县牛浪坡林场 | C17: 小计 | E17: 小计 | I17: =SUM(I18) -> 36 | J17: =J18 -> 36 | K17: 36 | L17: 0 | M17: 0 | N17: 0 | O17: 0 | P17: 0 | R17: 36 | S17: 36 | T17: 36 | U17: 36 | V17: 36 | W17: 36 | X17: 36 | Y17: 36
A18: 7 | B18: 国营三江侗族自治县牛浪坡林场 | C18: 河口分场 | D18: 牛浪坡林场河口分场林下百部种植项目 | E18: 产业发展 | F18: 新建 | G18: 国营三江侗族自治县牛浪坡林场河口分场九公里杉木林建立林下种植百部示范林，种植面积100亩。种植采收周期3年。可以有效地利用森林资源，减少对原始森林的砍伐和破坏。有助于林业的可持续发展。通过充分利用森林资源，实现土地的多元利用和循环利用，减少对土地、水资源和化肥的过度消耗，降低环境污染的风险。来增加平方土地上经济产出，提高林场经济收入， | H18: 2025年2月-2025年12月 | I18: 36 | J18: =K18+L18+P18+M18+N18+O18 -> 36 | K18: 36 | R18: 1 | T18: 40 | U18: 60 | Z18: 牛浪坡林场 | AA18: 牛浪坡林场 | AB18: 国营三江侗族自治县牛浪坡林场河口分场九公里杉木林建立林下种植百部示范林，。项目建成后，利润：10000元-15000元/亩/三年。通过林下种植百部起到示范带动作用，可以带动农民合作与协作，促进了地域合作和交流，增强了地域凝聚力，增加农村地区的经济活动和发展机会。为林场提供新的收入来源，增加县财政收入。 | AC18: 百部林下种植需要劳动力参与，提供了农村地区的就业机会，有助于减轻农村劳动力闲置问题，促进农民增收。 | AD18: 欠发达国有林场巩固提升任务
A19: 县易服中心 | C19: 小计 | E19: 小计 | I19: =SUM(I20:I29) -> 527.184778 | J19: =SUM(J20:J29) -> 506 | K19: 0 | L19: 471 | M19: 35 | N19: 0 | O19: 0 | P19: 0 | R19: =SUM(R20:R29) -> 0 | S19: 10 | T19: 16248 | U19: 70446 | V19: 16152 | W19: 70082 | X19: 16128 | Y19: 69987
A20: 8 | B20: 古宜镇 | C20: 富安家园安置点 | D20: 古宜镇富安家园安置点基础配套附属设施建设项目（易安后扶） | E20: 易地搬迁后扶 | F20: 新建 | G20: 1、安装带杆太阳能路灯35盏 2、下水道井盖9个 3、小区消防通道划线150平方米。 | H20: 2025年3月-2025年12月 | I20: 14.450754 | J20: =K20+L20+P20+M20+N20+O20 -> 13 | L20: 13 | S20: 1 | T20: 131 | U20: 717 | V20: 131 | W20: 717 | X20: 131 | Y20: 717 | Z20: 易服中心 | AA20: 易服中心 | AB20: 通过建设项目，完善安置点基础设施，解决富安家园易安点小区巷道晚间黑暗问题，消除安全隐患，保障群众生活安全、提高易安点治安安全系数，方便出行、改善居民生活条件和强身健体，受益群众131户717人。 | AC20: 通过建设项目，有效改善安置点基础设施，解决131户717人晚间巷道黑暗问题，消除安全隐患，保障群众生活安全、提高易安点治安安全系数，方便出行、改善居民生活条件。
A21: 9 | B21: 古宜镇 | C21: 厘金滩安置点 | D21: 古宜镇厘金滩安置点基础配套附属设施建设项目（易安后扶） | E21: 易地搬迁后扶 | F21: 新建 | G21: 13栋、14栋化粪池出口管道维修61米 | H21: 2025年3月-2025年12月 | I21: 5.004741 | J21: 13 | L21: 13 | S21: 1 | T21: 56 | U21: 300 | V21: 56 | W21: 300 | X21: 56 | Y21: 300 | Z21: 易服中心 | AA21: 易服中心 | AB21: 通过建设项目，解决易安点排污管道堵塞、完成化粪池排水管排污功能等问题，改善搬迁群众生活环境，提升安置点基础设施条件，提高群众获得感和满意度，受益群众56户300人。 | AC21: 通过完善安置点基础附属设施，解决56户300人易安点排污管道堵塞、安全出行等问题，改善搬迁群众生活环境，提升安置点基础设施条件和提高群众满意度。
A22: 10 | B22: 古宜镇 | C22: 南站社区 | D22: 古宜镇南站社区基础配套附属设施建设项目（易安后扶） | E22: 易地搬迁后扶 | F22: 新建 | G22: 1、安装5个小区太阳能路灯172盞 2、侗笛小区、鼓楼小区各2套安防设施，共4套安防设施（车辆识别杆系统） 3、鼓楼小区、侗笛小区新建排水沟共223米。 | H22: 2025年3月-2025年12月 | I22: 79.470376 | J22: 80.5 | L22: 66 | M22: 14.5 | S22: 1 | T22: 4606 | U22: 19581 | V22: 4606 | W22: 19581 | X22: 4606 | Y22: 19581 | Z22: 易服中心 | AA22: 易服中心 | AB22: 通过建设项目，继续完善安置点基础配套设施，一是解决安置点各小区晚间巷道黑暗问题，方便搬迁群众日常出行，消除安全隐患；二是有效易安小区治安管理乱问题，保障搬迁群众居住安全，使搬迁群众的安全感得到提升；三是解决小区排污管道堵塞、雨季排水不顺畅，积水等问题，提升居民居住环境，提高群众满意度。受益群众4606户19581人。 | AC22: 通过建设项目，完善安置点基础设施，解决4606户19581人晚间出行安全、车辆管理、治安管理、排水管堵塞等问题，提高安置点治安安全系数，方便出行、改善居民生活环境，让搬迁群众住的放心、住得舒心。
A23: 11 | B23: 古宜镇 | C23: 南站社区 | D23: 古宜镇南站社区排水沟建设项目（易安后扶） | E23: 易地搬迁后扶 | F23: 新建 | G23: 1.新建排水沟一条（长度423米、深度1.25米、宽度2.1米），沉沙井7个，集水井2个等。 | H23: 2025年3月-2025年12月 | I23: 100.611395 | J23: 103 | L23: 89 | M23: 14 | S23: 1 | T23: 4606 | U23: 19581 | V23: 4606 | W23: 19581 | X23: 4606 | Y23: 19581 | Z23: 易服中心 | AA23: 易服中心 | AB23: 通过建设项目，继续完善安置点基础配套设施，解决社区排污管道堵塞、雨季排水不顺畅，积水等问题，提升居民居住环境，提高群众满意度。受益群众4606户19581人。 | AC23: 通过建设项目，完善安置点基础设施，解决4606户19581人出行安全、排水管堵塞等问题，改善安置点居民生活居住环境，方便群众到社区办理事务，提高获得感和满意度。
A24: 12 | B24: 林溪镇 | C24: 风雨九寨安置点 | D24: 林溪镇风雨九寨安置点安防建设项目（易安后扶） | E24: 易地搬迁后扶 | F24: 新建 | G24: 建设小区安防设施一套（单元楼梯口不锈钢防盗设施，含机械锁和电子钥匙） | H24: 2025年3月-2025年12月 | I24: 6.934278 | J24: 6 | L24: 6 | S24: 1 | T24: 132 | U24: 554 | V24: 132 | W24: 554 | X24: 132 | Y24: 554 | Z24: 易服中心 | AA24: 易服中心 | AB24: 通过建设项目，完善安置点基础配套设施，建设单元楼门禁，禁止外来人员随便出入，消除安全隐患，受益群众132户554人。 | AC24: 通过建设项目，解决小区单元楼无门禁，外来人员随便出入的安全隐患，为132户554名群众的人身财产安全保驾护航。
A25: 13 | B25: 良口乡 | C25: 良口开发区安置点 | D25: 良口乡良口开发区安置点基础配套附属设施建设项目（易安后扶） | E25: 易地搬迁后扶 | F25: 新建 | G25: 1、建设排水沟48米 2、11栋前道路硬化268平方米 3、无障碍通道（楼梯扶手21个单元共148米） 4、小区治安设施1个。 | H25: 2025年3月-2025年12月 | I25: 12.063205 | J25: 10 | L25: 10 | S25: 1 | T25: 204 | U25: 793 | V25: 204 | W25: 793 | X25: 204 | Y25: 793 | Z25: 易服中心 | AA25: 易服中心 | AB25: 通过建设项目，继续完善安置点基础配套设施，一为特殊群体提供便利服务，建设楼梯扶手方便他们日常出行；二解决安置点内雨季排水不顺畅、积水等问题；三是解决小区治安管理及方便群众办理事务问题，提升居民居住环境，提高群众满意度。受益204户793人。 | AC25: 通过建设项目，方便204户793人搬迁群众办事服务，增加党群联系，解决安置点搬迁群众日常出行、雨季积水、排水堵塞、治安管理等问题，提高安置点治安安全系数，方便出行、改善居民生活环境，让搬迁群众住的放心、住得舒心。
A26: 14 | B26: 富禄乡 | C26: 侗乡苗寨安置点 | D26: 富禄苗族乡侗乡苗寨安置点基础配套附属设施建设项目（易安后扶） | E26: 易地搬迁后扶 | F26: 新建 | G26: 新建蓄水池1个。长4.4米，宽3.4米，深1.9米，存水量约10吨 | H26: 2025年3月-2025年12月 | I26: 3.000723 | J26: 2.5 | L26: 2 | M26: 0.5 | S26: 1 | T26: 197 | U26: 972 | V26: 197 | W26: 972 | X26: 197 | Y26: 972 | Z26: 易服中心 | AA26: 易服中心 | AB26: 通过建设项目，进一步完善居民用水基础服务设施，通过建设蓄水池，可以有效解决居民用水不足问题，对进入蓄水池的水进行沉淀、过滤，提高供水的质量，为安置点提供紧急备用水源，解决群众生活用水难题，确保搬迁户正常用水，让搬迁群众住得安心，提升群众满意度，受益群众197户972人。 | AC26: 通过建设项目，完善安置小区基础附属设施，解决197户972人搬迁群众生活用水难题。为安置点提供紧急备用水源，确保搬迁户正常用水，有效解决搬迁群众的安全饮水。方便群众出行，让搬迁群众搬得出住得稳，有获得感、幸福感。
A27: 15 | B27: 同乐乡 | C27: 高武村平文屯安置点 | D27: 同乐乡高武村平文屯安置点基础配套附属设施建设项目（易安后扶） | E27: 易地搬迁后扶 | F27: 新建 | G27: 1、排雨水水沟（含盖板）33.6米；2、巷道硬化496平方米 | H27: 2025年3月-2025年12月 | I27: 9.133364 | J27: 8 | L27: 6 | M27: 2 | S27: 1 | T27: 143 | U27: 564 | V27: 47 | W27: 200 | X27: 23 | Y27: 105 | Z27: 易服中心 | AA27: 易服中心 | AB27: 通过建设项目，完善安置点基础配套设施，解决排水沟堵塞、雨季排水不顺畅，积水等问题，提升居民居住环境，提高群众满意度。受益群众23户105人。 | AC27: 通过建设项目，完善易安点基础设施建设，解决23户105人居住环境，提高获得感和满意度。
A28: 16 | B28: 同乐乡 | C28: 归夯村安置点 | D28: 同乐乡归夯村安置点基础配套附属设施建设项目（易安后扶） | E28: 易地搬迁后扶 | F28: 新建 | G28: 1、巷道维修硬化201平方米 2、防护设施25米 3、公路旁排水沟117米 | H28: 2025年3月-2025年12月 | I28: 16.515942 | J28: 14 | L28: 10 | M28: 4 | S28: 1 | T28: 54 | U28: 260 | V28: 54 | W28: 260 | X28: 54 | Y28: 260 | Z28: 易服中心 | AA28: 易服中心 | AB28: 通过建设项目，完善安置点搬迁群众活动场地，方便安置点居民出行便利，解决雨季路面积水等问题，不断提升安置点居住环境，提升群众幸福感及满意度，受益群众54户260人。 | AC28: 通过建设项目，解决安置点54户260人搬迁群众活动场地、雨季路面积水等问题，改善安置点基础设施。
A29: 17 | B29: 三江侗族自治县 | C29: 三江县易地搬迁安置点 | D29: 三江侗族自治县易地扶贫搬迁2025年融资利息及地方政府债券利息（易安后扶） | E29: 易地搬迁后扶 | F29: 新建 | G29: 2016-2018年易地扶贫搬迁项目已融资 133536.42万元，截止2024年9月30日已归70454.83万元，剩余金额63081.59万元;根据历年政府债券资金提示付息通知书及银行测算，我县2025年需偿还融资利息约280万元。 | H29: 2025年3月-2025年12月 | I29: 280 | J29: 256 | L29: 256 | S29: 1 | T29: 6119 | U29: 27124 | V29: 6119 | W29: 27124 | X29: 6119 | Y29: 27124 | Z29: 易服中心 | AA29: 三江县电力有限责任公司 | AB29: 通过建设项目，按时偿还“十三五”规划时期产生的易地扶贫搬迁融资及地方政府债券利息，保持企业良好征信，受益群众6119户27124人。 | AC29: 通过偿还“十三五”规划时期产生的易地扶贫搬迁融资及地方政府债券利息，保持企业良好征信。
A30: 县融媒体中心 | C30: 小计 | E30: 小计 | I30: =SUM(I31) -> 441.17 | J30: =SUM(J31) -> 441 | K30: 0 | L30: 441 | M30: 0 | N30: 0 | O30: 0 | P30: 0 | R30: =SUM(R31) -> 0 | S30: 0 | T30: 60000 | U30: 300000 | V30: 0 | W30: 0 | X30: 0 | Y30: 0
A31: 18 | B31: 全县 | D31: 2025年三江侗族自治县特色产业与文旅产业品牌宣传推广项目 | E31: 产业发展 | F31: 新建 | G31: 与中央电视台开展三江茶品牌宣传推广；运维“三江早春茶”品牌抖音号平台；运维三江早春茶微信公众号1个；运维三江早春茶视频号1个；三江特色产业品牌形象宣传推广；“两茶”等特色产业宣传片制作4个；三江侗族自治县乡村振兴网络名人培育基地（直播带货和实训基地）四个直播间直播带货一体机矩阵建设和平台矩阵系统配备维护升级项目；三江早春茶系列视频推广；与新媒体协会策划三江早春茶系列宣传活动策划。 | H31: 2025年1月-2025年12月 | I31: 441.17 | J31: =K31+L31+P31+M31+N31+O31 -> 441 | L31: 441 | T31: 60000 | U31: 300000 | Z31: 融媒体中心 | AA31: 融媒体中心 | AB31: 1、在中央电视台农业农村频道CCTV-17播出特别节目专题片2集，节目主题为关注三江茶叶产业，茶旅结合，时长10分钟；播出新闻动态报道8条；在中央广播电视总台农业农村节目中心新媒体平台，发布特色主题宣传片8条。2、通过专业团队运维专属三江茶品牌推广的抖音号、微信公众号、视频号三个新媒体平台，合计完成60个1分钟以内的短视频发布、70条推文发布、完成32场直播带货，通过短视频、直播推广、直播带货、图文推广等形式，以及与上级媒体平台合作，抢占宣传舆论阵地，营造产茶大县氛围，助力三江茶品牌打造和推广。3、采集、制作特色产业品牌形象推广1分钟以内短视频20个，全年官方全媒体矩阵展示；自媒体制作特色产业品牌形象推广1分钟以内短视频40个，在自媒体平台发布。4、完成三江油茶、三江茶叶等内容宣传片制作2个，时长每个5-7分钟，并在三江电视台播出，在风情三江视频号和抖音号等平台发布；自媒体完成特色产业5条品牌宣传小短片，时长1—2分钟，在自媒体平台发布。5、自媒体策划“茶韵三江，视界绽放” 优质短视频征集活动：预计参与用户：10人+，精选主推视频5个+。“春茶潮拍，抖出精彩”抖音短视频创作大赛：预计参与用户：30人+，预计总流量：200万+。“品三江早春茶，赢幸运早茶礼” 逢 6 有礼公众号推文活动：浏览量6000+。“墨香茶语，文润三江” 三江早春茶优质软文创作活动：向县内外10个+知名媒体平台发布推文。“镜藏茶影，定格美好” 三江早春茶摄影大赛活动：投稿30人+，征集作品100+（以上工作分两个阶段进行） | AC31: "通过国家级权威媒体助力三江茶品牌打造和推广，提升三江茶知名度和认可度，进而拓展市场开发，促进茶农茶青销售、茶叶销售。通过本地媒体矩阵推广和宣传，助力三江茶品牌打造和推广，提升三江茶知名度和认可度，进而拓展市场开发，促进茶农茶青销售、茶叶销售。通过网络宣传平台运维，抢占宣传舆论阵地，营造产茶大县氛围，助力三江茶品牌打造和推广。进而拓展三江茶市场影响力和占有率，促进茶农茶青销售、茶叶销售。与合作入驻基地的经济组织签协议，利用乡村振兴网络直播带货平台，直接带动相关产业的企业、专业合作社、村集体经济组织在线上销售产品，实现经济收入。"
A32: 县交通局 | C32: 小计 | E32: 小计 | I32: =SUM(I33:I41) -> 607.6742 | J32: =SUM(J33:J41) -> 569 | K32: 374 | L32: 80 | M32: 0 | N32: 0 | O32: 115 | P32: 0 | R32: =SUM(R33:R41) -> 4 | S32: 5 | T32: 5441 | U32: 20418 | V32: 1319 | W32: 5532 | X32: 0 | Y32: 0
A33: 19 | B33: 丹洲镇 | C33: 板江社区 | D33: 丹洲镇板江社区雷洞屯至麻江屯防护栏（三项工程） | E33: 乡村建设行动 | F33: 新建 | G33: 雷洞屯至麻江屯道路新建2公里波形防护栏 | H33: 2025年1月-2025年12月 | I33: 48.3769 | J33: =K33+L33+P33+M33+N33+O33 -> 45 | K33: 37 | O33: 8 | R33: 1 | T33: 543 | U33: 2397 | V33: 88 | W33: 309 | Z33: 交通运输局 | AA33: 公路发展中心 | AB33: 新建2公里波形防护栏，完善村屯基础设施建设，提升村基础设施环境和生活条件，解决沿线543户，2397人出行难问题，其中脱贫户88户，309人。 数量指标：新建道路防护工程 =2公里； 质量指标：项目（工程）验收合格率 =100%； 时效指标：项目（工程）完成及时率 =100%； 成本指标：项目建设总成本 ≤42万元； 社会效益指标：解决沿线群众行路难问题受益人数 ≥2397人; 可持续影响指标:工程设计使用年限 ≥10年; 服务对象满意度指标:受益贫困人口满意度 ≥90%; | AC33: 新建2公里波形防护栏，完善村屯基础设施建设，提升村基础设施环境和生活条件，解决沿线543户，2397人出行难问题，其中脱贫户88户，309人。
A34: 20 | B34: 独峒镇 | C34: 知了村 | D34: 独峒镇知了村屯级道路安防建设项目工程（三项工程） | E34: 乡村建设行动 | F34: 新建 | G34: 归滚、知了、良拜屯共新建道路安全防护栏约2公里 | H34: 2025年1月-2025年12月 | I34: 46.6135 | J34: 44 | K34: 31 | L34: 8 | O34: 5 | S34: 1 | T34: 632 | U34: 2499 | V34: 189 | W34: 806 | Z34: 交通运输局 | AA34: 公路发展中心 | AB34: 新建2公里波形防护栏，提升村基础设施环境和生活条件，解决知了村道路存在安全隐患问题，完善村屯基础设施建设，保障632户2499人出行安全 数量指标：新建道路防护工程 =2公里； 质量指标：项目（工程）验收合格率 =100%； 时效指标：项目（工程）完成及时率 =100%； 成本指标：项目建设总成本 ≤42万元； 社会效益指标：解决沿线群众行路难问题受益人数 ≥2499人; 可持续影响指标:工程设计使用年限 ≥10年; 服务对象满意度指标:受益贫困人口满意度 ≥90%; | AC34: 新建2公里波形防护栏，完善村屯基础设施建设，提升村基础设施环境和生活条件，解决知了村道路存在安全隐患问题，完善村屯基础设施建设，保障632户2499人出行安全
A35: 21 | B35: 高基乡 | C35: 桐叶村 | D35: 高基乡桐叶村必赖屯道路防护栏（三项工程） | E35: 乡村建设行动 | F35: 新建 | G35: 新建道路防护栏总长350米 | H35: 2025年1月-2025年12月 | I35: 4.3238 | J35: 4 | K35: 3 | O35: 1 | R35: 1 | T35: 261 | U35: 1057 | V35: 70 | W35: 299 | Z35: 交通运输局 | AA35: 公路发展中心 | AB35: 新建350米波形防护栏，完善村屯基础设施建设，提升村基础设施环境和生活条件，解决沿线261户，1057人出行难问题，其中脱贫户70户，299人。 数量指标：新建道路防护工程 =350米； 质量指标：项目（工程）验收合格率 =100%； 时效指标：项目（工程）完成及时率 =100%； 成本指标：项目建设总成本 ≤5万元 社会效益指标：解决沿线群众行路难问题受益人数 ≥1057人; 可持续影响指标:工程设计使用年限 ≥10年; 服务对象满意度指标:受益贫困人口满意度 ≥90%; | AC35: 新建350米波形防护栏，完善村屯基础设施建设，提升村基础设施环境和生活条件，解决沿线261户，1057人出行难问题，其中脱贫户70户，299人。
A36: 22 | B36: 良口乡 | C36: 产口村 | D36: 良口乡产口村屯级道路提升建设工程（三项工程） | E36: 乡村建设行动 | F36: 新建 | G36: 高贵、寨枝、寨沙、长冲屯全程6.8公里，扩宽硬化1米以及挡土墙多处。 | H36: 2025年1月-2025年12月 | I36: 137.5811 | J36: 128 | K36: 83 | O36: 45 | S36: 1 | T36: 517 | U36: 2090 | V36: 136 | W36: 582 | Z36: 交通运输局 | AA36: 公路发展中心 | AB36: 新建6.8公里通屯道路3.5米宽混凝土路面加宽提升1米。完善村屯基础设施建设，提升村基础设施环境和生活条件，解决沿线517户，2090人出行难问题，其中脱贫户136户，582人。 数量指标：新建改建公路里程 =6.8公里； 质量指标：项目（工程）验收合格率 =100%； 时效指标：项目（工程）完成及时率 =100%； 成本指标：项目建设总成本 ≤140万元； 社会效益指标：解决沿线群众行路难问题受益人数 ≥2090人; 可持续影响指标:工程设计使用年限 ≥10年; 服务对象满意度指标:受益贫困人口满意度 ≥90%; | AC36: 新建6.8公里通屯道路3.5米宽混凝土路面加宽提升1米。完善村屯基础设施建设，提升村基础设施环境和生活条件，解决沿线517户，2090人出行难问题，其中脱贫户136户，582人。
A37: 23 | B37: 同乐乡 | C37: 七团村 | D37: 同乐乡七团村七团屯入村生命防护栏及道路修复项目（三项工程） | E37: 乡村建设行动 | F37: 新建 | G37: 建设600米生命防护栏及路面修复总长度50米长、4.5米宽，厚0.2米，路面加宽120米，宽1米，厚0.2米 | H37: 2025年1月-2025年12月 | I37: 14.2994 | J37: 14 | K37: 9 | O37: 5 | S37: 1 | T37: 605 | U37: 2431 | V37: 276 | W37: 1195 | Z37: 交通运输局 | AA37: 公路发展中心 | AB37: 新建600米波形防护栏。完善村屯基础设施建设，提升村基础设施环境和生活条件，解决沿线605户，2431人出行难问题，其中脱贫户276户，1195人。 数量指标：新建道路防护工程 =600米； 质量指标：项目（工程）验收合格率 =100%； 时效指标：项目（工程）完成及时率 =100%； 成本指标：项目建设总成本 ≤20万元； 社会效益指标：解决沿线群众行路难问题受益人数 ≥2431人; 可持续影响指标:工程设计使用年限 ≥10年; 服务对象满意度指标:受益贫困人口满意度 ≥90%; | AC37: 新建600米波形防护栏。完善村屯基础设施建设，提升村基础设施环境和生活条件，解决沿线605户，2431人出行难问题，其中脱贫户276户，1195人。
A38: 24 | B38: 同乐乡 | C38: 七团村 | D38: 同乐乡七团屯至高洋村通屯路生命防护栏项目（三项工程） | E38: 乡村建设行动 | F38: 新建 | G38: 新建4公里通屯道路波形护栏及标志标牌。 | H38: 2025年1月-2025年12月 | I38: 73.9583 | J38: 70 | K38: 53 | L38: 12 | O38: 5 | S38: 1 | T38: 605 | U38: 2431 | V38: 276 | W38: 1195 | Z38: 交通运输局 | AA38: 公路发展中心 | AB38: 新建4公里波形防护栏，完善村屯基础设施建设，提升村基础设施环境和生活条件，解决沿线605户，2431人出行难问题，其中脱贫户276户，1195人。 数量指标：新建道路防护工程 =4公里； 质量指标：项目（工程）验收合格率 =100%； 时效指标：项目（工程）完成及时率 =100%； 成本指标：项目建设总成本 ≤84万元； 社会效益指标：解决沿线群众行路难问题受益人数 ≥2431人; 可持续影响指标:工程设计使用年限 ≥10年; 服务对象满意度指标:受益贫困人口满意度 ≥90%; | AC38: 新建4公里波形防护栏，完善村屯基础设施建设，提升村基础设施环境和生活条件，解决沿线605户，2431人出行难问题，其中脱贫户276户，1195人。
A39: 25 | B39: 同乐乡 | C39: 桂书村 | D39: 同乐乡桂书村高扒屯至高武屯路面加宽工程（三项工程） | E39: 乡村建设行动 | F39: 新建 | G39: 新建4.2公里通屯道路3.5米宽混凝土路面加宽提升1米。 | H39: 2025年1月-2025年12月 | I39: 47.5003 | J39: 45 | K39: 30 | O39: 15 | S39: 1 | T39: 412 | U39: 1686 | V39: 129 | W39: 525 | Z39: 交通运输局 | AA39: 公路发展中心 | AB39: 新建4.2公里通屯道路3.5米宽混凝土路面加宽提升1米。完善村屯基础设施建设，提升村基础设施环境和生活条件，解决沿线412户，1686人出行难问题，其中脱贫户129户，526人。 数量指标：新建改建公路里程 =4.2公里； 质量指标：项目（工程）验收合格率 =100%； 时效指标：项目（工程）完成及时率 =100%； 成本指标：项目建设总成本 ≤76万元； 社会效益指标：解决沿线群众行路难问题受益人数 ≥1686人; 可持续影响指标:工程设计使用年限 ≥10年; 服务对象满意度指标:受益贫困人口满意度 ≥90%; | AC39: 新建4.2公里通屯道路3.5米宽混凝土路面加宽提升1米。完善村屯基础设施建设，提升村基础设施环境和生活条件，解决沿线412户，1686人出行难问题，其中脱贫户129户，526人。
A40: 26 | B40: 林溪镇 | C40: 林溪社区 | D40: 林溪镇林溪社区道路桥梁工程项目 | E40: 乡村建设行动 | F40: 新建 | G40: 新建道路桥梁长45米，宽6米，高7.7米。 | H40: 2025年1月-2025年12月 | I40: 200 | J40: 186 | K40: 106 | L40: 60 | O40: 20 | R40: 1 | T40: 1316 | U40: 4139 | V40: 81 | W40: 342 | Z40: 交通运输局 | AA40: 公路发展中心 | AB40: 完成新建道路桥梁长45米，宽6米，高7.7米，及配套设施建设。 | AC40: 解决道路通车问题，改善脱贫村和面上村基础设施，方便4139人出行水平。
A41: 27 | B41: 和平乡 | C41: 六溪村 | D41: 和平乡六溪村六溪村至泗泷屯路面加宽提升工程（三项工程） | E41: 乡村建设行动 | F41: 新建 | G41: 扩宽六溪村至泗泷屯通屯道路。1.4公里原3.5米路面硬化加宽至4.5路面 | H41: 2025年1月-2025年12月 | I41: 35.0209 | J41: 33 | K41: 22 | O41: 11 | R41: 1 | T41: 550 | U41: 1688 | V41: 74 | W41: 279 | Z41: 交通运输局 | AA41: 公路发展中心 | AB41: 新建1.4公里通屯道路3.5米宽混凝土路面加宽提升1米。，完善村屯基础设施建设，提升村基础设施环境和生活条件，解决沿线550户，1688人出行难问题，其中脱贫户74户，279人。 数量指标：新建改建公路里程 =1.4公里； 质量指标：项目（工程）验收合格率 =100%； 时效指标：项目（工程）完成及时率 =100%； 成本指标：项目建设总成本 ≤20万元； 社会效益指标：解决沿线群众行路难问题受益人数 ≥1688人; 可持续影响指标:工程设计使用年限 ≥10年; 服务对象满意度指标:受益贫困人口满意度 ≥90%; | AC41: 新建1.4公里通屯道路3.5米宽混凝土路面加宽提升1米。，完善村屯基础设施建设，提升村基础设施环境和生活条件，解决沿线550户，1688人出行难问题，其中脱贫户74户，279人。
A42: 县农业农村局 | C42: 小计 | E42: 小计 | I42: =SUM(I43:I188) -> 30599.52493 | J42: =SUM(J43:J188) -> 29812 | K42: =SUM(K43:K188) -> 15615 | L42: =SUM(L43:L188) -> 4573 | M42: 1118 | N42: 3484 | O42: 2566 | P42: 1846 | Q42: 610 | R42: =SUM(R43:R188) -> 480 | S42: 718 | T42: 165537 | U42: 575472 | V42: 75798 | W42: 229047 | X42: 9049 | Y42: 16597
A43: 28 | B43: 三江县 | C43: 各村 | D43: 2025年三江侗族自治县螺蛳粉原材料基地建设以奖代补项目 | E43: 产业发展 | F43: 新建 | G43: 发展螺蛳粉原材料（豆角、木耳螺蛳）基地建设，对达到补助条件的种植/养殖户、村集体和新型经营主体进行奖补，积极推进螺蛳粉原材料产业发展。 | H43: 2025年3月--2025年12月 | I43: 584 | J43: =K43+L43+P43+M43+N43+O43+Q43 -> 565 | L43: 565 | T43: 200 | U43: 600 | V43: 80 | W43: 240 | Z43: 农业农村局 | AA43: 农业农村局 | AB43: 建设螺蛳粉原材料（豆角、木耳螺蛳）基地，对达到补助条件的种植/养殖户、村集体和新型经营主体进行奖补，带动农户就业和发展产业，同时增加村集体经济收入。实现就业人员或者发展产业农户增收1000元以上。 | AC43: 实现就业人员或者发展产业农户增收1000元以上，增加村集体经济收入。
A44: 29 | B44: 三江县 | C44: 各村 | D44: 2025年三江侗族自治县到户产业以奖代补项目 | E44: 产业发展 | F44: 新建 | G44: 对发展县级“5”产业、村级“3”产业和自主从全区86个产业中自选一个产业并达到补助条件的脱贫户、监测对象进行奖补。 | H44: 2025年3月--2025年12月 | I44: 3100 | J44: =K44+L44+P44+M44+N44+O44+Q44 -> 3160.02927 | K44: 2494 | L44: 650 | P44: 16.02927 | R44: 64 | S44: 98 | T44: 12000 | U44: 36000 | V44: 12000 | W44: 36000 | Z44: 农业农村局 | AA44: 农业农村局 | AB44: 对发展县级“5”村级“3”特色产业和自主从全区86个产业中自选一个产业并达到补助条件的脱贫户、监测对象进行奖补。通过实施以奖代补政策，年带动农户12000户以上发展生产，实现户均增收1200元以上。 | AC44: 其他，促进农户户均年增收超过0.12万元。
A45: 30 | B45: 三江县 | C45: 各村 | D45: 2025年三江侗族自治县雨露计划项目 | E45: 巩固三保障成果 | F45: 新建 | G45: 1.雨露计划职业教育学历补助补助； 2.雨露计划短期技能培训； 3.雨露计划农民实用技术培训。 | H45: 2025年3月--2025年12月 | I45: 1430 | J45: 1430 | K45: 720 | L45: 330 | M45: 380 | R45: 169 | S45: 169 | T45: 12000 | U45: 12000 | V45: 12000 | W45: 12000 | X45: 2170 | Y45: 2170 | Z45: 农业农村局 | AA45: 农业农村局（乡村振兴综合服务中心） | AB45: 一是核实核准雨露计划学生信息，做到精准补助、应补尽补，确保补助资金按时足额发放到户。二是根据贫困劳动力转移就业需求，有针对性地开展短期技能培训，实现技能型就业，提高就业质量；三是围绕产业发展需要，大力开展农村实用技术培训，重点培育一批“土专家”、种养能手和技术骨干。 | AC45: 通过“雨露计划”引导农村脱贫户（监测对象）家庭初中、高中毕业生和青壮年劳动力接受学历教育及技能培训，提升内生动力，促进转移就业，实现增收致富，阻断贫困代际传递。
A46: 31 | B46: 三江县 | C46: 各村 | D46: 2025年三江侗族自治县脱贫人口小额信贷贴息资金 | E46: 产业发展 | F46: 新建 | G46: 完成脱贫人口小额信贷贴息，解决脱贫人口发展生产启动资金难问题，支持脱贫人口发展生产 | H46: 2025年3月--2025年12月 | I46: 1200 | J46: 1200 | K46: 1200 | R46: 62 | S46: 98 | T46: 5000 | U46: 20000 | V46: 4000 | W46: 16000 | X46: 1000 | Y46: 4000 | Z46: 农业农村局 | AA46: 农业农村局（乡村振兴综合服务中心） | AB46: 完成脱贫人口小额信贷贴息，解决脱贫人口发展生产启动资金难问题，支持脱贫人口发展生产，受益户数 6000户。 | AC46: 按时完成脱贫人口小额信贷贴息5000户，促进脱贫人口增收
A47: 32 | B47: 三江县 | C47: 各村 | D47: 2025年三江侗族自治县脱贫人口小额信贷风险补偿金 | E47: 产业发展 | F47: 新建 | G47: 完成脱贫人口小额信贷风险补偿，防范化解金融风险。 | H47: 2025年3月--2025年12月 | I47: 135 | J47: 135 | L47: 135 | R47: 62 | S47: 98 | T47: 5000 | U47: 20000 | V47: 4000 | W47: 16000 | X47: 1000 | Y47: 4000 | Z47: 农业农村局 | AA47: 农业农村局（乡村振兴综合服务中心） | AB47: 完成脱贫人口小额信贷风险补偿，防范化解金融风险。
A48: 33 | B48: 三江县 | C48: 各村 | D48: 2025年三江侗族自治县乡村振兴公益岗补助 | E48: 就业项目 | F48: 新建 | G48: 开发公益性岗位，解决4000左右人次就业，保障脱贫人口就业稳定、解决就业问题、巩固脱贫成效。详见附件6. | H48: 2025年3月--2025年12月 | I48: 5949 | J48: 5949 | K48: 2526 | L48: 167 | M48: 587 | N48: 2309 | Q48: 360 | T48: 4000 | U48: 4000 | V48: 3800 | W48: 3800 | X48: 1000 | Y48: 1000 | Z48: 农业农村局 | AA48: 农业农村局（乡村振兴综合服务中心） | AB48: 完成开发公益性岗位，解决4000左右人次就业，保障脱贫人口就业稳定、解决就业问题、巩固脱贫成效，促进脱贫人口增收。 | AC48: 通过务工就业/技术培训指导/等方式，促进农户年增收超过1000万元。
A49: 34 | B49: 三江县 | C49: 各村 | D49: 2025年三江侗族自治县脱贫人口跨省一次性交通补助 | E49: 就业项目 | F49: 新建 | G49: 对前往区外务工脱贫户（含监测户）劳动力享受不低于300元/人／年一次性交通补贴，完成年任务2万人给以一次性交通补助。 | H49: 2025年3月--2025年12月 | I49: 1500 | J49: 1500 | K49: 600 | L49: 300 | N49: 515 | Q49: 85 | T49: 6000 | U49: 20000 | V49: 5800 | W49: 19800 | X49: 2000 | Y49: 1000 | Z49: 农业农村局 | AA49: 农业农村局（乡村振兴综合服务中心） | AB49: 到区外务工脱贫户（含监测户）一次性交通补贴补助2万人，保障脱贫人口就业稳定、解决就业问题、巩固脱贫成效，促进脱贫人口增收。 | AC49: 通过务工就业/技术培训指导/等方式，促进农户年增收超过1000万元。
A50: 35 | B50: 三江县 | C50: 各村 | D50: 2025年三江侗族自治县脱贫人口县域内稳定就业补助 | E50: 就业项目 | F50: 新建 | G50: 在县域内稳定就业补助（150至400元/人.月），补助最长不超过6个月。 | H50: 2025年3月--2025年12月 | I50: 500 | J50: 515 | K50: 240 | L50: 120 | Q50: 155 | T50: 3000 | U50: 4000 | V50: 2900 | W50: 3900 | X50: 1000 | Y50: 800 | Z50: 农业农村局 | AA50: 农业农村局（乡村振兴综合服务中心） | AB50: 完成县域内劳务补贴补助0.3万人，保障脱贫人口就业稳定、解决就业问题、巩固脱贫成效，促进脱贫人口增收。 | AC50: 通过务工就业/技术培训指导/等方式，促进农户年增收超过1000万元。
A51: 36 | B51: 三江县 | C51: 各村 | D51: 2025年三江侗族自治县项目（扶贫）资产管护金 | E51: 项目管理费 | F51: 新建 | G51: 对三江县2013年至2023年度项目（扶贫）资产进行管护，保障项目（扶贫）资产管理工作正常开展，资产持续正常使用，保障资金使用效益。详见附件4. | H51: 2025年3月--2025年12月 | I51: 609.458625 | J51: 609.458625 | O51: 609.458625 | Z51: 农业农村局 | AA51: 各乡镇 | AC51: 对三江县2013年至2023年度项目（扶贫）资产进行管护，保障项目（扶贫）资产管理工作正常开展，资产持续正常使用，保障资金使用效益。
A52: 37 | B52: 三江县 | C52: 各村 | D52: 2024年巩固拓展脱贫攻坚成果和乡村振兴任务项目（续建） | E52: 项目管理费 | F52: 续建 | G52: 支付2024年衔接资金项目巩固拓展脱贫攻坚成果和乡村振兴任务项目尾款、质保金。详见附件5. | H52: 2025年3月--2025年12月 | I52: 1500 | J52: 1598.746265 | O52: 1598.746265 | Z52: 农业农村局 | AA52: 各单位 | AC52: 支付三江县2024年度项目尾款、质保金，保障项目按时按质完成，保障资金使用效益。
A53: 38 | B53: 三江县 | C53: 各村 | D53: 2025年三江侗族自治县衔接资金项目管理费 | E53: 项目管理费 | F53: 新建 | G53: 2025年度资金项目设计预算、监理等项目管理费用。详见附件2. | H53: 2025年3月--2025年12月 | I53: 2500 | J53: 2460.76584 | K53: 240 | L53: 100 | O53: 290.79511 | P53: 1829.97073 | Z53: 农业农村局 | AA53: 各单位 | AC53: 完成三江县2025年度资金项目管理费用支付管理，保障项目管理合法合规按时按质完成。
A54: 39 | B54: 斗江镇 | C54: 滩底村 | D54: 斗江镇滩底村河村屯生猪养殖场项目 | E54: 产业发展 | F54: 新建 | G54: 建设生猪养殖场5000平方米，建设厂房及附属设备。 | H54: 2025年3月--2025年12月 | I54: 490 | J54: 490 | K54: 420 | N54: 70 | Z54: 农业农村局 | AA54: 农业农村局 | AC54: 按照投资资金4%的比例获取分红，每村每年预计通过分红收入2.8万元。 | AD54: 集体经济项目
A55: 40 | B55: 八江镇 | C55: 三团村 | D55: 2025年八江镇集体经济项目（综合种养基地） | E55: 产业发展 | F55: 新建 | G55: 占地面积9112.5平方米。1.厂房共4座，建筑面积（钢架棚）4416平方米；配套建筑面积（宿舍、料房）93.18平方米。2.水塔（15吨）2座，化粪池1座；3.外电安装 | H55: 2025年3月--2025年12月 | I55: 140 | J55: 140 | K55: 140 | Z55: 农业农村局 | AA55: 八江镇 | AC55: 按照投资资金4%的比例获取分红，每村每年预计通过分红收入2.8万元。 | AD55: 集体经济项目
A56: 41 | B56: 斗江镇 | C56: 斗江社区 | D56: 斗江镇绿满园蛋鸡养殖场项目 | E56: 产业发展 | F56: 新建 | G56: 项目占地面积12亩，建设钢结构鸡舍1栋、蛋库1栋、鸡粪棚、发电机房等配套设施。 | H56: 2025年6月--2025年12月 | I56: 490 | J56: 490 | N56: 490 | Z56: 农业农村局 | AA56: 农业农村局 | AE56: 新增项目
A57: 42 | B57: 三江县 | C57: 三江县 | D57: 2025年三江茶品牌运营项目 | E57: 产业发展 | F57: 续建 | G57: 举办2025年三江早春茶线上产销对接会暨三江茶文化活动，以及其它茶事活动等；参加国内各类展销会、博览会；品牌宣传广告投放；三江茶品质提升技术开发及风味特色挖掘；三江茶商标及专利维护等。 | H57: 2025年1月-2025年12月 | I57: 260.00 | J57: 260 | L57: 160.00 | N57: 100.00 | R57: 66 | S57: 96 | T57: 65000 | U57: 250000 | V57: 16800 | W57: 60000 | Z57: 三江县农业农村局 | AA57: 三江县农业农村局 | AB57: 本项目通过组织企业参加国内各类茶叶展销会，参加及举办各类茶事活动；产品品质提升等措施促进茶叶销售；通过三江早春茶广告投放，提高三江茶品牌知名度。通过以上品牌打造措施，带动16800户脱贫户茶青收购，实现脱贫户增收。 | AC57: 通过参加国内各类展销会、博览会，各类茶事活动，广告投放等，提高三江茶品牌知名度，促进企业茶产品销售，从而带动茶农茶青收购，实现联农带农富农目标。
A58: 43 | B58: 古宜镇 | C58: 大竹村 | D58: 古宜镇大竹村茶叶产业基地便道建设 | E58: 产业发展 | F58: 新建 | G58: 硬化茶园便道1.946公里。 | H58: 2025年3月-2025年11月 | I58: 34.93 | J58: 33 | K58: 33.00 | R58: 1 | T58: 932 | U58: 3670 | V58: 73 | W58: 264 | Y58: 0 | Z58: 三江县农业农村局 | AA58: 古宜镇 | AB58: 完成建设茶园便道1.946公里。 | AC58: 促进产业发展改善平传村基础设施，方便3670人差农业发展。 | AD58: 乡镇
A59: 44 | B59: 古宜镇 | C59: 平传村 | D59: 古宜镇平传村茶叶产业基地便道建设工程 | E59: 产业发展 | F59: 新建 | G59: 硬化茶园便道7.5公里。 | H59: 2025年3月-2025年11月 | I59: 90.463217 | J59: 86 | K59: 71 | L59: 15 | R59: 1 | T59: 610 | U59: 2510 | V59: 62 | W59: 212 | Z59: 三江县农业农村局 | AA59: 古宜镇 | AB59: 完成建设茶园便道7.5公里。 | AC59: 促进产业发展改善平传村基础设施，方便610户2510人差农业发展。 | AD59: 乡镇
A60: 45 | B60: 古宜镇 | C60: 文大村 | D60: 古宜镇文大村茶叶产业基地便道建设工程 | E60: 产业发展 | F60: 新建 | G60: 硬化茶园便道2.4公里。 | H60: 2025年3月-2025年11月 | I60: 31.017285 | J60: 29 | K60: 22 | L60: 7 | R60: 1 | T60: 242 | U60: 971 | V60: 12 | W60: 33 | Z60: 三江县农业农村局 | AA60: 古宜镇 | AB60: 完成建设茶园便道2.4公里。 | AC60: 改善生产生活条件，促进产业发展，巩固脱贫成果。方便971人群众发展生产 | AD60: 乡镇
A61: 46 | B61: 古宜镇 | C61: 寨准村 | D61: 古宜镇寨准村茶叶产业基地便道建设工程 | E61: 产业发展 | F61: 新建 | G61: 硬化茶园便道4公里。 | H61: 2025年3月-2025年11月 | I61: 82.583635 | J61: 78 | K61: 63 | L61: 15 | R61: 1 | T61: 148 | U61: 657 | V61: 10 | W61: 42 | Z61: 三江县农业农村局 | AA61: 古宜镇 | AB61: 完成建设茶园便道2.4公里。 | AC61: 改善生产生活条件，促进产业发展，巩固脱贫成果。方便278人群众发展生产 | AD61: 乡镇
A62: 47 | B62: 独峒镇 | C62: 唐朝村 | D62: 独峒镇唐朝村茶叶产业基地便道建设工程 | E62: 产业发展 | F62: 新建 | G62: 硬化茶园便道6.4公里。 | H62: 2025年3月-2025年11月 | I62: 142.675480 | J62: 135 | K62: 113 | L62: 22 | S62: 1 | T62: 682 | U62: 2830 | V62: 273 | W62: 1450 | Z62: 三江县农业农村局 | AA62: 三江县农业农村局 | AB62: 完成建设茶园便道6.4公里。 | AC62: 完善唐朝村生产基础设施建设，方便群众发展生产，促进茶叶产业发展，受益群众682户2830人。 | AD62: 茶办
A63: 48 | B63: 独峒镇 | C63: 八协村 | D63: 独峒镇八协村茶叶产业基地便道建设工程 | E63: 产业发展 | F63: 新建 | G63: 硬化茶园便道5.4公里。 | H63: 2025年3月-2025年11月 | I63: 122.131631 | J63: 116 | K63: 94 | L63: 22 | S63: 1 | T63: 572 | U63: 2266 | V63: 125 | W63: 504 | Z63: 三江县农业农村局 | AA63: 三江县农业农村局 | AB63: 完成建设茶园便道5.4公里。 | AC63: 解决脱贫村生产便道硬化匮乏问题，改善贫困村基础设施，促进产业发展，方便572户2266人生产发展。 | AD63: 茶办
A64: 49 | B64: 独峒镇 | C64: 干冲村 | D64: 独峒镇干冲村茶叶产业基地便道建设工程 | E64: 产业发展 | F64: 新建 | G64: 硬化茶园便道3公里。 | H64: 2025年3月-2025年11月 | I64: 48.235487 | J64: 43 | K64: 27 | L64: 16 | S64: 1 | T64: 1426 | U64: 5317 | V64: 265 | W64: 1157 | Z64: 三江县农业农村局 | AA64: 独峒镇 | AB64: 完成建设茶园便道2公里。 | AC64: 解决脱贫村生产便道硬化匮乏问题，改善贫困村基础设施，促进产业发展，方便1426户5317人生产发展。 | AD64: 乡镇
A65: 50 | B65: 独峒镇 | C65: 林略村 | D65: 独峒镇林略村茶叶产业基地便道建设工程 | E65: 产业发展 | F65: 新建 | G65: 硬化茶园便道5公里。 | H65: 2025年3月-2025年11月 | I65: 118.294938 | J65: 113 | K65: 93 | L65: 20 | S65: 1 | T65: 887 | U65: 3466 | V65: 150 | W65: 698 | Z65: 三江县农业农村局 | AA65: 三江县农业农村局 | AB65: 完成建设茶园便道5公里。 | AC65: 解决脱贫村生产便道硬化匮乏问题，改善贫困村基础设施，促进产业发展，方便887户3466人生产发展。 | AD65: 茶办
A66: 51 | B66: 洋溪乡 | C66: 波里村 | D66: 洋溪乡波里村茶叶产业基地便道建设工程 | E66: 产业发展 | F66: 新建 | G66: 硬化茶园便道3公里。 | H66: 2025年3月-2025年11月 | I66: 51.46984 | J66: 46 | K66: 39 | L66: 7 | S66: 1 | T66: 421 | U66: 1874 | V66: 120 | W66: 509 | Z66: 三江县农业农村局 | AA66: 洋溪乡 | AB66: 完成建设茶园便道4公里。 | AC66: 改决村民出行困难等问题，增加农作物运输和护理效率，吸引外商投资，带动波里村产业发展。 | AD66: 乡镇
A67: 52 | B67: 同乐乡 | C67: 高旁村 | D67: 同乐乡高旁村茶叶产业基地便道建设工程 | E67: 产业发展 | F67: 新建 | G67: 硬化茶园便道8公里。 | H67: 2025年3月-2025年11月 | I67: 184.854362 | J67: 175 | K67: 145 | L67: 30 | S67: 1 | T67: 446 | U67: 1723 | V67: 192 | W67: 800 | Z67: 三江县农业农村局 | AA67: 三江县农业农村局 | AB67: 完成建设茶园便道8公里。 | AC67: 解决贫困村产业生产安全出行问题，改善贫困村基础设施，方便446户1723人出行安全，保障村民出行安全，促进村民产业发展。 | AD67: 茶办
A68: 53 | B68: 同乐乡 | C68: 高洋村 | D68: 同乐乡高洋村茶叶产业基地便道建设工程 | E68: 产业发展 | F68: 新建 | G68: 硬化茶园便道5公里。 | H68: 2025年3月-2025年11月 | I68: 80.147806 | J68: 71 | K68: 56 | L68: 15 | S68: 1 | T68: 561 | U68: 2616 | V68: 166 | W68: 736 | Z68: 三江县农业农村局 | AA68: 同乐乡 | AB68: 完成建设茶园便道5公里。 | AC68: 为茶农提供了更加便捷的通行条件，降低了劳动强度，从而提高了劳动效率；有利于茶园的精细化管理，茶农可以更加方便地巡视茶园，及时发现并处理病虫害等问题，保证茶叶的生长环境良好，直接促进了茶产业的发展，提高了茶叶的产量和质量，进而增加了茶农的收入从而提升茶叶的品质， | AD68: 乡镇
A69: 54 | B69: 同乐乡 | C69: 寨大村 | D69: 同乐乡寨大村茶叶产业基地便道建设工程 | E69: 产业发展 | F69: 新建 | G69: 硬化茶园便道7.3公里。 | H69: 2025年3月-2025年11月 | I69: 89.936885 | J69: 81 | K69: 70 | L69: 11 | R69: 1 | T69: 240 | U69: 948 | V69: 45 | W69: 166 | Z69: 三江县农业农村局 | AA69: 同乐乡 | AB69: 完成建设茶园便道7.3公里。 | AC69: 完善产业基地配套设施，扩大产业种植规模，促进产业提质增效。增加农户收入，壮大村集体经济。方便240户948人开展产业活动。 | AD69: 乡镇
A70: 55 | B70: 同乐乡 | C70: 同乐村 | D70: 同乐乡同乐村茶叶产业基地便道建设工程 | E70: 产业发展 | F70: 新建 | G70: 硬化茶园便道10公里。 | H70: 2025年3月-2025年11月 | I70: 184.053292 | J70: 175 | K70: 145 | L70: 30 | S70: 1 | T70: 1402 | U70: 4963 | V70: 275 | W70: 1125 | Z70: 三江县农业农村局 | AA70: 三江县农业农村局 | AB70: 完成建设茶园便道10公里。 | AC70: 完善产业基地配套设施，扩大产业种植规模，促进产业提质增效。增加农户收入，壮大村集体经济。方便1402户4963人开展产业活动。 | AD70: 茶办
A71: 56 | B71: 同乐乡 | C71: 归东村 | D71: 同乐乡归东村茶叶产业基地便道建设工程 | E71: 产业发展 | F71: 新建 | G71: 硬化茶园便道6公里。 | H71: 2025年3月-2025年11月 | I71: 138.587029 | J71: 131 | K71: 116 | L71: 15 | S71: 1 | T71: 560 | U71: 2277 | V71: 305 | W71: 1274 | Z71: 三江县农业农村局 | AA71: 三江县农业农村局 | AB71: 完成建设茶园便道6公里。 | AC71: 完善产业基地配套设施，扩大产业种植规模，促进产业提质增效。增加农户收入，壮大村集体经济。方便560户2277人开展产业活动。 | AD71: 茶办
A72: 57 | B72: 同乐乡 | C72: 地保村 | D72: 同乐乡地保村茶叶产业基地便道建设工程 | E72: 产业发展 | F72: 新建 | G72: 硬化茶园便道10公里。 | H72: 2025年3月-2025年11月 | I72: 176.54 | J72: 167 | K72: 137 | L72: 30 | S72: 1 | T72: 405 | U72: 1561 | V72: 166 | W72: 683 | Z72: 三江县农业农村局 | AA72: 三江县农业农村局 | AB72: 完成建设茶园便道4公里。 | AC72: 改善生产生活条件，促进产业发展，巩固脱贫成果。方便群众发展生产 | AD72: 茶办
A73: 58 | B73: 程村乡 | C73: 大树村 | D73: 程村乡大树村茶叶产业基地便道建设工程 | E73: 产业发展 | F73: 新建 | G73: 硬化茶园便道3.6公里。 | H73: 2025年3月-2025年11月 | I73: 49.362111 | J73: 44 | K73: 37 | L73: 7 | R73: 1 | T73: 224 | U73: 759 | V73: 41 | W73: 147 | Z73: 三江县农业农村局 | AA73: 程村乡 | AB73: 完成建设茶园便道3.6公里。 | AC73: 改善生产生活条件，促进产业发展，巩固脱贫成果。方便群众发展生产 | AD73: 乡镇
A74: 59 | B74: 八江镇 | C74: 汾水村 | D74: 八江镇汾水村茶叶产业基地便道建设工程 | E74: 产业发展 | F74: 新建 | G74: 硬化茶园便道4公里。 | H74: 2025年3月-2025年11月 | I74: 42.124288 | J74: 38 | K74: 31 | L74: 7 | R74: 0 | S74: 1 | T74: 781 | U74: 3319 | V74: 368 | W74: 1550 | Z74: 三江县农业农村局 | AA74: 八江镇 | AB74: 完成建设茶园便道4公里。 | AC74: 完善汾水村产业基础设施，促进产业发展，便于群众出行 | AD74: 乡镇
A75: 60 | B75: 八江镇 | C75: 八斗村 | D75: 八江镇八斗村茶叶产业基地便道建设工程 | E75: 产业发展 | F75: 新建 | G75: 硬化茶园便道8.6公里。 | H75: 2025年3月-2025年11月 | I75: 100.980389 | J75: 96 | K75: 80 | L75: 16 | R75: 1 | T75: 1210 | U75: 4110 | V75: 165 | W75: 638 | X75: 117 | Y75: 514 | Z75: 三江县农业农村局 | AA75: 三江县农业农村局 | AB75: 完成建设茶园便道8.6公里。 | AC75: 改善生产生活条件，促进产业发展，巩固脱贫成果。方便群众发展生产 | AD75: 项目办
A76: 61 | B76: 八江镇 | C76: 归令村 | D76: 八江镇归令村茶叶产业基地便道建设工程 | E76: 产业发展 | F76: 新建 | G76: 硬化茶园便道5公里。 | H76: 2025年3月-2025年11月 | I76: 115.45 | J76: =K76+L76+P76+M76+N76+O76+Q76 -> 110 | K76: 94 | L76: 16 | S76: 1 | T76: 631 | U76: 2302 | V76: 146 | W76: 549 | Z76: 三江县农业农村局 | AA76: 三江县农业农村局 | AB76: 完成建设茶园便道5公里。 | AC76: 改善生产生活条件，促进产业发展，巩固脱贫成果。方便群众发展生产 | AD76: 项目办
A77: 62 | B77: 八江镇 | C77: 岩脚村 | D77: 八江镇岩脚村茶叶产业基地便道建设工程 | E77: 产业发展 | F77: 新建 | G77: 硬化茶园便道3.6公里。 | H77: 2025年3月-2025年11月 | I77: 53.611198 | J77: 48 | K77: 41 | L77: 7 | S77: 1 | T77: 354 | U77: 1170 | V77: 118 | W77: 440 | Z77: 三江县农业农村局 | AA77: 八江镇 | AB77: 完成建设茶园便道3.6公里。 | AC77: 改善生产生活条件，促进产业发展，巩固脱贫成果。方便群众发展生产 | AD77: 乡镇
A78: 63 | B78: 八江镇 | C78: 布央村 | D78: 八江镇布央村茶叶产业基地便道建设工程 | E78: 产业发展 | F78: 新建 | G78: 硬化茶园便道8公里。 | H78: 2025年3月-2025年11月 | I78: 119.54756 | J78: 114 | K78: 99 | L78: 15 | R78: 1 | T78: 632 | U78: 2361 | V78: 144 | W78: 558 | X78: 33 | Y78: 148 | Z78: 三江县农业农村局 | AA78: 三江县农业农村局 | AB78: 完成建设茶园便道8公里。 | AC78: 改善生产生活条件，促进产业发展，巩固脱贫成果。方便群众发展生产 | AD78: 项目办
A79: 64 | B79: 良口乡 | C79: 寨塘村 | D79: 良口乡寨塘村茶叶产业基地便道建设工程 | E79: 产业发展 | F79: 新建 | G79: 硬化茶园便道3.6公里。 | H79: 2025年3月-2025年11月 | I79: 62.759849 | J79: 56 | K79: 52.5 | L79: 3.5 | S79: 1 | T79: 279 | U79: 1133 | V79: 106 | W79: 499 | Z79: 三江县农业农村局 | AA79: 良口乡 | AB79: 完成建设茶园便道3.6公里。 | AC79: 完善产业基地配套设施，促进产业提质增效。增加农户收入，壮大村集体经济。 | AD79: 乡镇
A80: 65 | B80: 良口乡 | C80: 良口村 | D80: 良口乡良口村茶叶产业基地便道建设工程 | E80: 产业发展 | F80: 新建 | G80: 硬化茶园便道6.5公里。 | H80: 2025年3月-2025年11月 | I80: 96.143788 | J80: 86 | K80: 59.5 | L80: 26.5 | R80: 1 | T80: 1277 | U80: 3786 | V80: 278 | W80: 1064 | X80: 78 | Y80: 284 | Z80: 三江县农业农村局 | AA80: 良口乡 | AB80: 完成建设茶园便道6.5公里。 | AC80: 完善产业基地配套设施，促进产业提质增效。增加农户收入，壮大村集体经济。 | AD80: 乡镇
A81: 66 | B81: 林溪镇 | C81: 高秀村 | D81: 林溪镇高秀茶茶叶产业基地便道建设工程 | E81: 产业发展 | F81: 新建 | G81: 硬化茶园便道2.5公里。 | H81: 2025年3月-2025年11月 | I81: 59.372481 | J81: 53 | K81: 42 | L81: 11 | T81: 40 | U81: 180 | V81: 25 | W81: 110 | Z81: 三江县农业农村局 | AA81: 林溪镇 | AB81: 完成建设茶园便道2.5公里。 | AC81: 完善产业基地配套设施，扩大产业种植规模，促进产业提质增效。增加农户收入，壮大村集体经济。方便405户1561人开展产业活动。 | AD81: 乡镇
A82: 67 | B82: 林溪镇 | C82: 美俗村 | D82: 林溪镇美俗村茶叶产业基地便道建设工程 | E82: 产业发展 | F82: 新建 | G82: 硬化茶园便道10公里。 | H82: 2025年3月-2025年11月 | I82: 181.221005 | J82: 172 | K82: 142 | L82: 30 | S82: 1 | T82: 453 | U82: 1645 | V82: 122 | W82: 337 | X82: 47 | Y82: 180 | Z82: 三江县农业农村局 | AA82: 三江县农业农村局 | AB82: 完成建设茶园便道10公里。 | AC82: 改善生产生活条件，促进产业发展，巩固脱贫成果。方便278人群众发展生产 | AD82: 茶办
A83: 68 | B83: 老堡乡 | C83: 老巴村 | D83: 老堡乡老巴村茶叶产业基地便道建设工程 | E83: 产业发展 | F83: 新建 | G83: 硬化茶园便道2.9公里。 | H83: 2025年3月-2025年11月 | I83: 68.572856 | J83: 61 | K83: 50 | L83: 11 | S83: 1 | T83: 336 | U83: 1548 | V83: 156 | W83: 710 | X83: 45 | Y83: 223 | Z83: 三江县农业农村局 | AA83: 老堡乡 | AB83: 完成建设茶园便道2.9公里。 | AC83: 完善老巴村生产基础设施建设，方便群众发展生产，促进茶叶产业发展，受益群众336户1548人。 | AD83: 乡镇
A84: 69 | B84: 老堡乡 | C84: 边浪村 | D84: 老堡乡边浪村茶叶产业基地便道建设工程 | E84: 产业发展 | F84: 新建 | G84: 硬化茶园便道7公里。 | H84: 2025年3月-2025年11月 | I84: 135.243750 | J84: 129 | K84: 114.6 | L84: 14.4 | S84: 1 | T84: 343 | U84: 1542 | V84: 280 | W84: 1292 | Z84: 三江县农业农村局 | AA84: 三江县农业农村局 | AB84: 完成建设茶园便道7公里。 | AC84: 解决脱贫村生产便道硬化匮乏问题，改善贫困村基础设施，促进产业发展，方便343户1542人生产发展。 | AD84: 项目办
A85: 70 | B85: 老堡乡 | C85: 车田村 | D85: 老堡乡车田村茶叶产业基地便道建设工程 | E85: 产业发展 | F85: 新建 | G85: 硬化茶园便道10公里。 | H85: 2025年3月-2025年11月 | I85: 159.035411 | J85: 150 | K85: 123.7 | L85: 26.3 | R85: 1 | T85: 296 | U85: 1140 | V85: 33 | W85: 126 | X85: 26 | Y85: 98 | Z85: 三江县农业农村局 | AA85: 三江县农业农村局 | AB85: 完成建设茶园便道10公里。 | AC85: 解决脱贫村生产便道硬化匮乏问题，改善贫困村基础设施，促进产业发展，方便296户1140人生产发展。 | AD85: 项目办
A86: 71 | B86: 老堡乡 | C86: 老堡村 | D86: 老堡乡老堡村茶叶产业基地便道建设工程 | E86: 产业发展 | F86: 新建 | G86: 硬化茶园便道6.3公里。 | H86: 2025年3月-2025年11月 | I86: 103.143116 | J86: 98 | K86: 78.7 | L86: 19.3 | R86: 1 | T86: 496 | U86: 1829 | V86: 77 | W86: 291 | Z86: 三江县农业农村局 | AA86: 三江县农业农村局 | AB86: 完成建设茶园便道6.3公里。 | AC86: 解决老堡村生产便道硬化匮乏问题，改善村内基础设施，促进产业发展，方便496户1829人生产发展。 | AD86: 项目办
A87: 72 | B87: 斗江镇 | C87: 东坪村 | D87: 斗江镇东坪村茶叶产业基地便道建设工程 | E87: 产业发展 | F87: 新建 | G87: 硬化茶园便道4.4公里。 | H87: 2025年3月-2025年11月 | I87: 65.279762 | J87: 58 | K87: 47 | L87: 11 | R87: 1 | T87: 371 | U87: 1271 | V87: 20 | W87: 57 | Z87: 三江县农业农村局 | AA87: 斗江镇 | AB87: 完成建设茶园便道4.4公里。 | AC87: 改善生产生活条件，促进产业发展，巩固脱贫成果。方便群众发展生产 | AD87: 乡镇
A88: 73 | B88: 斗江镇 | C88: 扶平村 | D88: 斗江镇扶平村茶叶产业基地便道建设工程 | E88: 产业发展 | F88: 新建 | G88: 硬化茶园便道2公里。 | H88: 2025年3月-2025年11月 | I88: 38.084052 | J88: 34 | K88: 28 | L88: 6 | S88: 1 | T88: 755 | U88: 2585 | V88: 199 | W88: 781 | Z88: 三江县农业农村局 | AA88: 斗江镇 | AB88: 完成建设茶园便道2公里。 | AC88: 改善生产生活条件，促进产业发展，巩固脱贫成果。方便群众发展生产 | AD88: 乡镇
A89: 74 | B89: 斗江镇 | C89: 沙宜村 | D89: 斗江镇沙宜村茶叶产业基地便道建设工程 | E89: 产业发展 | F89: 新建 | G89: 硬化茶园便道5公里。 | H89: 2025年3月-2025年11月 | I89: 72.264627 | J89: 65 | K89: 62 | L89: 3 | R89: 1 | T89: 637 | U89: 2293 | V89: 90 | W89: 329 | Z89: 三江县农业农村局 | AA89: 斗江镇 | AB89: 完成建设茶园便道1.5公里。 | AC89: 改善生产生活条件，促进产业发展，巩固脱贫成果。方便群众发展生产 | AD89: 乡镇
A90: 75 | B90: 独峒镇 | C90: 八协村 | D90: 独峒镇八协村茶园水肥一体化项目 | E90: 产业发展 | F90: 新建 | G90: 覆盖220亩的水肥一体化系统（含配电设施），主要实施内容为：水肥一体化水网系统及附属配电设施，总共覆盖220亩。 | H90: 2025年3月-2025年11月 | I90: 173.8 | J90: 160 | K90: 130 | L90: 30 | S90: 1 | T90: 572 | U90: 2266 | V90: 125 | W90: 504 | Z90: 三江县农业农村局 | AA90: 三江县农业农村局 | AB90: 完成建设358亩的水肥一体化系统（含配电设施），主要实施内容为：水肥一体化水网系统及附属配电设施，总共覆盖358亩。 | AC90: 完善产业基地配套设施，扩大产业种植规模，促进产业提质增效。增加农户收入，壮大村集体经济。方便405户1562人开展产业活动。
A91: 76 | B91: 洋溪乡 | C91: 高露村 | D91: 洋溪乡高露村茶园水肥一体化项目 | E91: 产业发展 | F91: 新建 | G91: 覆盖164亩的水肥一体化系统（含配电设施），主要实施内容为：水肥一体化水网系统及附属配电设施，总共覆盖164亩。 | H91: 2025年3月-2025年11月 | I91: 181 | J91: 167 | K91: 137 | L91: 30 | S91: 1 | T91: 240 | U91: 800 | V91: 46 | W91: 208 | Z91: 三江县农业农村局 | AA91: 三江县农业农村局 | AB91: 完成建设300亩的水肥一体化系统（含配电设施），主要实施内容为：水肥一体化水网系统及附属配电设施，总共覆盖300亩。 | AC91: 完善产业基地配套设施，扩大产业种植规模，促进产业提质增效。增加农户收入，壮大村集体经济。方便405户1564人开展产业活动。
A92: 77 | B92: 林溪镇 | C92: 高秀村 | D92: 林溪镇高秀村茶园水肥一体化项目 | E92: 产业发展 | F92: 新建 | G92: 新建覆盖173亩的茶园水肥一体化系统项目，建设内容有水肥一体化网管、配电设备及配套附属设施。 | H92: 2025年3月-2025年11月 | I92: 188.5 | J92: 173 | K92: 147 | L92: 26 | S92: 1 | T92: 418 | U92: 1648 | V92: 140 | W92: 557 | X92: 51 | Y92: 195 | Z92: 三江县农业农村局 | AA92: 三江县农业农村局 | AB92: 完成建设350亩的茶园水肥一体化系统项目，建设内容有水肥一体化网管、配电设备及配套附属设施。 | AC92: 完善产业基地配套设施，扩大产业种植规模，促进产业提质增效。增加农户收入，壮大村集体经济。方便405户1565人开展产业活动。
A93: 78 | B93: 良口乡 | C93: 良口村 | D93: 良口乡茶青交易市场项目 | E93: 产业发展 | F93: 新建 | G93: 钢架棚、路灯（19盏）、室外排水沟、室外混泥土道路硬化、矮墙拆除及抹灰、新建厕所 | H93: 2025年6月-2025年11月 | I93: 80 | J93: 80 | M93: 80 | R93: 3 | S93: 12 | T93: 8221 | U93: 32068 | V93: 2581 | W93: 10897 | X93: 204 | Y93: 808 | Z93: 三江县农业农村局 | AA93: 良口乡 | AB93: 项目建成后将有效解决良口乡茶农茶叶交易场地拥挤、拥堵国道造成安全隐患等问题，提升人民群众获得感及提高群众工作满意度。 | AC93: 该项目位于良口大桥头十字路口旁，是良口乡绝大多数人群众日常出行的必经道路，项目的实施将有效解决良口乡茶农在国道边交易茶叶的不安全问题，进一步提高群众的生产生活条件，使巩固拓展脱贫攻坚成果同乡村振兴衔接工作成果惠及良口乡每一户每一人。 | AE93: 新增项目
A94: 79 | B94: 八江镇 | C94: 八江村 | D94: 三江县福康种养殖专业合作社龙福辣椒种植项目 | E94: 产业发展 | F94: 新建 | G94: 1.冻库1座。 2.水肥一体化：灌溉水带26000米，灌溉水管4000米。 | H94: 2025年6月-2025年11月 | I94: 25.00 | J94: 25 | M94: 25.00 | R94: 1 | S94: 1 | T94: 967 | U94: 3606 | V94: 185 | W94: 672 | X94: 172 | Y94: 749 | Z94: 三江县农业农村局 | AA94: 三江县农业农村局（经作） | AB94: 项目建成后，种植辣椒基地200亩，通过流转土地经营、提供就业岗位等方式,受益农户124户558人左右,其中脱贫户、监测户81户365人左右，人均年增收6000元左右。 | AC94: 通过销售产品/带种带养/务工就业/等方式，促进农户年增收超过1万元。 | AE94: 新增项目
A95: 80 | B95: 八江镇 | C95: 三团村 | D95: 三江富泽菌业有限公司智能出菇方舱建设项目 | E95: 产业发展 | F95: 新建 | G95: 扩建秀珍菇智能方舱2座 | H95: 2025年6月-2025年11月 | I95: 11.00 | J95: 11 | L95: 11 | R95: 1 | S95: 0 | T95: 515 | U95: 1777 | V95: 110 | W95: 441 | Z95: 三江县农业农村局 | AA95: 三江县农业农村局（经作） | AB95: 项目建成后，基地每年能利用方舱种植平菇等食用菌2万棒 | AC95: 基地通过集中制包，群众分散管理出菇，每年可带动周边20-30户群众参与，可实现参与群众每年增收30-50万元。 | AE95: 新增项目
A96: 81 | B96: 程村乡 | C96: 头坪村 | D96: 三江县程村乡蔬菜种植基地项目水肥一体项目 | E96: 产业发展 | F96: 新建 | G96: 新建蔬菜种植基地水肥一体设施一套 | H96: 2025年6月-2025年11月 | I96: 25.00 | J96: 25 | M96: 25.00 | R96: 1 | S96: 0 | T96: 650 | U96: 2400 | V96: 37 | W96: 139 | X96: 5 | Y96: 16 | Z96: 三江县农业农村局 | AA96: 三江县农业农村局（经作） | AB96: 完成蔬菜种植基地水肥一体设施建设，通过与公司合作，提高村集体经济收入，增加群众就业率及收入。 | AC96: 通过发展蔬菜种植产业，带动群众就业，提高村集体经济收入。 | AE96: 新增项目
A97: 82 | B97: 程村乡 | C97: 大树村 | D97: 三江县佳盈家庭农场有限公司罗汉果烘烤加工厂项目工程 | E97: 产业发展 | F97: 新建 | G97: 新建罗汉果加工厂房一座长14米，宽12米，高6米，烤房一座长8米，宽5米，高3.1米。 | H97: 2025年6月-2025年11月 | I97: 9.00 | J97: 9 | M97: 9.00 | R97: 1 | S97: 0 | T97: 224 | U97: 759 | V97: 41 | W97: 147 | Z97: 三江县农业农村局 | AA97: 三江县农业农村局（经作） | AB97: 完成罗汉果加工厂房及烤房建设，解决群众罗汉果销路问题，提高群众收入 | AC97: 通过发展罗汉果加工产业，带动群众就业，提高群众收入。 | AE97: 新增项目
A98: 83 | B98: 梅林乡 | C98: 梅林村 | D98: 三江县梅林乡广藿香种植基地水肥一体化项目 | E98: 产业发展 | F98: 新建 | G98: 新建广藿香种植基地120亩，建设地膜、水肥一体化 | H98: 2025年6月-2025年11月 | I98: 12.00 | J98: 12 | M98: 12.00 | R98: 0 | S98: 1 | T98: 224 | U98: 736 | V98: 104 | W98: 362 | X98: 26 | Y98: 109 | Z98: 三江县农业农村局 | AA98: 三江县农业农村局（经作） | AB98: 新建20亩含地膜、水肥一体化的简易大棚广藿香种植基地，项目建成后，预计种植2万颗广藿香，产值20万元左右，通过流转土地经营、提供就业岗位、带动种植等方式,受益农户224户736人左右,其中脱贫户、监测户104户362人左右，人均年增收2000元左右。 | AC98: 通过销售产品、务工就业、技术培训指导、提供社会化服务、产业基础配套设施建设等方式，促进农户人均年增收超过2000元。 | AE98: 新增项目
A99: 84 | B99: 古宜镇 | C99: 洲北村 | D99: 古宜镇洲北村溪脑屯农田水利设施建设工程（地点：金竹口） | E99: 乡村建设行动 | F99: 新建 | G99: 新建三面光水利30cm*30cm*1500m | H99: 2025年1月--2025年12月 | I99: 18.28 | J99: 16 | K99: 16 | R99: 1 | T99: 92 | U99: 351 | V99: 16 | W99: 55 | Y99: 0 | Z99: 农业农村局 | AA99: 古宜镇 | AB99: 完善小型农田水利设施建设，改善面上村基础设施，方便92户351人生产生活。 | AC99: 改善面上村基础设施，方便92户351人生产生活。
A100: 85 | B100: 古宜镇 | C100: 周坪村 | D100: 古宜镇周坪村榕树屯农田水利设施建设工程 | E100: 乡村建设行动 | F100: 新建 | G100: 新建三面光水利30cm*30cm*2000m，新增 ，旧渠修补，50米（折除重建0.3✘0.3三面光） 2，排洪口水槽2处共10米（新增0.3✘0.3三面光） 3，渡槽后面涵管改水渠12米（清理塌方破折改建三面光水渠，加0.5米高✘厚0.2米挡土墙） 4，挡水墙长20米0.5✘0.3米（拦水坝农户农田边加高） 5，拦水坝1座（1号主渠1号支线源头，原设计无拦水坝，高0.5米宽0.5米1.5米长） 6，架空引水管维修16米（原跨河架空农田引水PⅴC管老化断裂被洪水冲走，新建改用DN100镀锌钢管架空连接） | H100: 2025年1月--2025年12月 | I100: 28.6599 | J100: 24 | K100: 24 | R100: 1 | T100: 151 | U100: 576 | V100: 27 | W100: 98 | Y100: 0 | Z100: 农业农村局 | AA100: 古宜镇 | AB100: 完善小型农田水利设施建设，改善面上村基础设施，方便151户576人生产生活。 | AC100: 改善面上村基础设施，方便151户576人生产生活。
A101: 86 | B101: 古宜镇 | C101: 大洲村 | D101: 古宜镇大洲村洲开屯农田水利设施建设工程（地点：旱信榜） | E101: 乡村建设行动 | F101: 新建 | G101: 新建大洲村洲开屯南面头至旱信榜2.5公里水渠，三面光40*40厘米及水管铺设 | H101: 2025年1月--2025年12月 | I101: 36.44 | J101: 33 | K101: 33 | R101: 1 | T101: 106 | U101: 440 | V101: 8 | W101: 35 | X101: 0 | Y101: 0 | Z101: 农业农村局 | AA101: 古宜镇 | AB101: 建设2.5公里水渠，三面光40*40厘米及水管铺设，解决大洲村洲开屯约50亩水田水利灌溉问题 | AC101: 解决大洲村洲开屯约50亩水田水利灌溉问题
A102: 87 | B102: 丹洲镇 | C102: 板必村 | D102: 丹洲镇板必村洛潘屯小农水利项目 | E102: 乡村建设行动 | F102: 新建 | G102: 新建三面光水渠长1500米、宽0.3米、高0.3米；水坝两座宽8米、高1米、厚0.8米（下底2米、上底0.8米） | H102: 2025年1月－2025年12月 | I102: 35.23 | J102: 32 | K102: 32 | R102: 1 | T102: 96 | U102: 360 | V102: 15 | W102: 55 | Z102: 农业农村局 | AA102: 丹洲镇 | AB102: 完成水渠水坝建设1500米及水坝两座， | AC102: 解决洛潘屯群众水稻种植问题，使群众增产增收。提高农户生活水平。
A103: 88 | B103: 丹洲镇 | C103: 西坡村 | D103: 丹洲镇西坡村水利建设项目 | E103: 乡村建设行动 | F103: 新建 | G103: 新建设水利三面光长2公里、宽30厘米、高40厘、基层厚10厘米、清理塌方泥土30米； | H103: 2025年1月－2025年12月 | I103: 58.82 | J103: 51.192 | K103: 39.192 | L103: 12 | R103: 1 | T103: 507 | U103: 1937 | V103: 43 | W103: 181 | Z103: 农业农村局 | AA103: 丹洲镇 | AB103: 严守耕地红线，促进高标准农田建设，有效解决群众缺水灌溉农田主要问题。 | AC103: 改善西坡村滩头屯的生产条件，促进产业发展，保证群众粮食收成有保障，提高群众粮食增收。
A104: 89 | B104: 丹洲镇 | C104: 合桐村 | D104: 丹洲镇合桐村农田水利项目 | E104: 乡村建设行动 | F104: 新建 | G104: 硬化30*30水利长1200米，枧槽50米.坝塘两处(合水屯、桐木屯) | H104: 2025年1月－2025年12月 | I104: 30.51 | J104: 27 | K104: 27 | R104: 1 | T104: 525 | U104: 1905 | V104: 29 | W104: 99 | X104: 4 | Y104: 7 | Z104: 农业农村局 | AA104: 丹洲镇 | AB104: 完善农田供水设施 | AC104: 改善合桐村的生产生活条件，促进农业产业发展。
A105: 90 | B105: 丹洲镇 | C105: 红路村 | D105: 丹洲镇红路村农田水利建设工程 | E105: 乡村建设行动 | F105: 新建 | G105: 1.毛田屯建设水利三面光长400米、宽30厘米、高30厘米、基层厚15厘米;2、白路屯（野夫口）建设水利三面光长200米、宽30厘米、高30厘米、基层厚15厘米; | H105: 2025年1月－2025年12月 | I105: 13.12 | J105: 11.808 | K105: 11.808 | R105: 0 | S105: 1 | T105: 60 | U105: 250 | V105: 25 | W105: 70 | Z105: 农业农村局 | AA105: 丹洲镇 | AB105: 严守耕地红线，促进高标准农田建设，有效解决群众缺水灌溉农田的主要问题 | AC105: 改善红路村生产条件，促进产业发展，确保群众粮食安全的保障。提高群众粮食的增收。
A106: 91 | B106: 丹洲镇 | C106: 江荷村 | D106: 丹洲镇江荷村望江亭农田水利三面光 | E106: 乡村建设行动 | F106: 新建 | G106: 三面光长：1500米，宽0.4，米高0.4 | H106: 2025年1月－2025年12月 | I106: 21.82 | J106: 19 | K106: 19 | S106: 1 | T106: 123 | U106: 516 | V106: 6 | W106: 24 | Z106: 农业农村局 | AA106: 丹洲镇 | AB106: 有效保护农田30亩 | AC106: 完善农田供水设施
A107: 92 | B107: 斗江镇 | C107: 斗江社区 | D107: 斗江镇斗江社区斗江屯农田水利设施建设工程（十六段） | E107: 乡村建设行动 | F107: 新建 | G107: 1、新建三面光水渠总长1783米，（其中0.2x0.2m三面光水渠678米；0.3x0.3m三面光水渠410米：0.6x0.6m三面光水渠695米）；2、新建拦水坝2座。 | H107: 2025年1月--2025年12月 | I107: 46.398932 | J107: 41 | K107: 41 | R107: 1 | T107: 382 | U107: 1528 | V107: 20 | W107: 60 | Z107: 农业农村局 | AA107: 斗江镇 | AB107: 完成水利2000米建设项目 | AC107: 有效解决382户1528人农田灌溉问题，提高粮食产量。
A108: 93 | B108: 斗江镇 | C108: 周牙村 | D108: 斗江镇周牙村廖村屯农田水利设施建设项目 | E108: 乡村建设行动 | F108: 新建 | G108: 1、新建三面光水渠总长1345米，（其中0.2x0.2m三面光水渠295米；0.3x0.3m三面光水渠779米；0.3x0.5m三面光水渠71米；0.4x0.4m三面光水渠200米）；2、50PE管总长112米；3、DN400波纹管总长57米；4、新建拦水坝2座；5、新建渡槽长52.5米。 | H108: 2025年1月--2025年12月 | I108: 41.703698 | J108: =K108+L108+P108+M108+N108+O108+Q108 -> 37 | K108: 37 | R108: 1 | T108: 228 | U108: 718 | V108: 43 | W108: 155 | Z108: 农业农村局 | AA108: 斗江镇 | AB108: 完成水利三面光0.3米*0.3米*3000米 | AC108: 解决廖村屯228户水利灌溉问题，改善廖村屯基础设施，方便228户718人灌溉。
A109: 94 | B109: 斗江镇 | C109: 凤凰村 | D109: 斗江镇凤凰中广屯农田水利设施建设工程 | E109: 乡村建设行动 | F109: 新建 | G109: 新建0.4米*0.4米三面光水渠760米;新建0.8米*0.8米三面光水渠27米;新建1座长1.5米，高0.6米拦水坝 | H109: 2025年1月--2025年12月 | I109: 21.062121 | J109: 19 | K109: 3.4571694 | L109: 2.5428306 | O109: 13 | R109: 1 | T109: 115 | U109: 403 | V109: 17 | W109: 70 | Z109: 农业农村局 | AA109: 斗江镇 | AB109: 加快我村现代标准农田建设步伐，打造亩产超吨粮的目标，进一步改善农业生产条件，提高农田生产能力，造应现代农业发展的需要。 | AC109: 农田水利设施工程建设后，可提高单产，增加产，从而增加产值，最终实现农业增产，使115户403人增收。
A110: 95 | B110: 斗江镇 | C110: 沙宜村 | D110: 斗江镇沙宜村沙湾屯油站背至火烧田农田水利设施建设工程 | E110: 乡村建设行动 | F110: 新建 | G110: 新建0.4x0.4m三面光水渠总长569米(其中24米需破除）;疏通原有直径300涵管7米。 | H110: 2025年1月--2025年12月 | I110: 14.538051 | J110: 13 | K110: 8.7228306 | L110: 4.2771694 | R110: 1 | T110: 52 | U110: 228 | V110: 12 | W110: 41 | Z110: 农业农村局 | AA110: 斗江镇 | AB110: 完成三面光1.5公里，及配套设施建设。 | AC110: 有效保障粮食安全生产，助力52户228人增产增收。
A111: 96 | B111: 斗江镇 | C111: 扶平村 | D111: 斗江镇扶平村农田水利设施建设工程（扶平屯、等平屯） | E111: 乡村建设行动 | F111: 新建 | G111: 新建0.2x0.2m三面光水渠180米；0.3x0.3m三面光水渠940米；0.4x0.3m三面光水渠405米；0.4x0.4m三面光水渠1130米；0.5x0.5m三面光水渠40米；1x0.6m三面光水渠55米；新建拦水坝3座；新建de75灌溉给水管2150米。 | H111: 2025年1月--2025年12月 | I111: 68.124289 | J111: 60 | K111: 40.86 | L111: 19.14 | S111: 1 | T111: 79 | U111: 307 | V111: 23 | W111: 95 | Z111: 农业农村局 | AA111: 斗江镇 | AB111: 完成农田水利2800米建设。 | AC111: 解决79户307人农田用水问题，提高群众粮食增收。
A112: 97 | B112: 斗江镇 | C112: 滩底村 | D112: 斗江镇滩底村河村屯公雄冲水利项目 | E112: 乡村建设行动 | F112: 新建 | G112: 水利三面光：0.3*0.3*765米，渡槽24.5米，拦水坝1个 | H112: 2025年1月--2025年12月 | I112: 20.577016 | J112: 18 | K112: 18 | R112: 1 | T112: 8 | U112: 27 | V112: 1 | W112: 4 | Z112: 农业农村局 | AA112: 斗江镇 | AB112: 完成三面光水利长1000米。 | AC112: 解决8户27人粮食种植问题
A113: 98 | B113: 斗江镇 | C113: 牙林村 | D113: 斗江镇牙林村牙林屯农田水利项目工程 | E113: 乡村建设行动 | F113: 新建 | G113: 水利三面光：0.2*0.2*719米、0.3*0.4*845米、0.5*0.5*332米，拦水坝2个 | H113: 2025年1月--2025年12月 | I113: 36.600404 | J113: 33 | K113: 21.96 | L113: 3.04 | O113: 8 | R113: 1 | T113: 125 | U113: 520 | V113: 15 | W113: 61 | Z113: 农业农村局 | AA113: 斗江镇 | AB113: 完成1800米农田水利三面光30厘米*30厘米*30厘米 | AC113: 解决非贫困村农田水利，促进125户520人农业增效。
A114: 99 | B114: 林溪镇 | C114: 林溪村 | D114: 林溪镇林溪村岩寨屯小型农田水利维修项目 | E114: 乡村建设行动 | F114: 新建 | G114: 完成维修岩寨小型农田水利，长20米宽下底2米，上底1米 | H114: 2025年3月--2025年12月 | I114: 10.997738 | J114: 9 | K114: 9 | R114: 1 | T114: 145 | U114: 618 | V114: 38 | W114: 186 | Z114: 农业农村局 | AA114: 林溪镇 | AB114: 完成维修岩寨小型农田水利，长20米宽下底2米，上底1米 | AC114: 解决林溪村岩寨屯农田灌溉，提升群众幸福感，提高群众生产效率
A115: 100 | B115: 林溪镇 | C115: 程阳村 | D115: 林溪镇程阳村世英农田水渠维修项目 | E115: 乡村建设行动 | F115: 新建 | G115: 完成农田水渠维修1500米 | H115: 2025年3月--2025年12月 | I115: 6.668271 | J115: 6 | K115: 6 | R115: 1 | T115: 200 | U115: 812 | V115: 40 | W115: 164 | Z115: 农业农村局 | AA115: 林溪镇 | AB115: 完成农田水渠维修1500米 | AC115: 解决程阳150亩农田灌溉。
A116: 101 | B116: 林溪镇 | C116: 平铺村 | D116: 林溪镇平铺村双夫农田灌溉 | E116: 乡村建设行动 | F116: 新建 | G116: 完成1公里150#EP引水管铺设，及配套设施建设。 | H116: 2025年3月--2025年12月 | I116: 14.405478 | J116: 12 | K116: 12 | R116: 1 | T116: 60 | U116: 250 | V116: 10 | W116: 55 | Z116: 农业农村局 | AA116: 林溪镇 | AB116: 完成1公里150#EP引水管铺设，及配套设施建设。 | AC116: 解决双夫片区农田灌溉问题，改善村基础设施，促进60户250人农业产业发展，农民增收。
A117: 102 | B117: 八江镇 | C117: 归令村 | D117: 八江镇归令村六更屯务岗水利项目 | E117: 乡村建设行动 | F117: 新建 | G117: 硬化水利三面光长1700米，30*30*30* | H117: 2025年1月--2025年12月 | I117: 73.689583 | J117: 66 | K117: 52 | L117: 14 | S117: 1 | T117: 105 | U117: 403 | V117: 42 | W117: 162 | Z117: 农业农村局 | AA117: 八江镇 | AB117: 新建硬化水利三面光长1700米.30*30*30* | AC117: 解决村民群众农田灌溉问题，保障村民农田有产业发展。
A118: 103 | B118: 八江镇 | C118: 三团村 | D118: 八江镇三团村三团屯便亨水利建设项目 | E118: 乡村建设行动 | F118: 新建 | G118: 1.新建30*30水渠长320米。2.新建 40*40水渠长 540米。3.水渠修复 45 米 | H118: 2025年1月--2025年12月 | I118: 33.994386 | J118: 30 | K118: 30 | R118: 1 | T118: 325 | U118: 1217 | V118: 63 | W118: 257 | X118: 20 | Y118: 83 | Z118: 农业农村局 | AA118: 八江镇 | AB118: 1.新建30*30水渠长320米。2.新建 40*40水渠长 540米。3.水渠修复 45 米 | AC118: 保障粮食生产安全，促进增收。受益人数325户1217人，其中脱贫户(包含监测户)63户257人。
A119: 104 | B119: 八江镇 | C119: 三团村 | D119: 八江镇三团村便妞孟龙水利项目 | E119: 乡村建设行动 | F119: 新建 | G119: 硬化水利三面光长500米，40*40，拦水坝一座长10米，高1米，宽0.8米， | H119: 2025年1月--2025年12月 | I119: 8.225534 | J119: 7 | K119: 7 | R119: 1 | T119: 254 | U119: 854 | V119: 56 | W119: 185 | Z119: 农业农村局 | AA119: 八江镇 | AB119: 维修硬化水利三面光长500米，40*40*40，拦水坝一座长10米，高1米，宽0.8米， | AC119: 改善三团村产业基础设施条件，促进种植产业，带动旅游产业发展。
A120: 105 | B120: 八江镇 | C120: 布央村 | D120: 八江镇布央村美地屯盘大水利三面光项目 | E120: 乡村建设行动 | F120: 新建 | G120: 长1980米*0.3*0.3米,φ300PE管420米，拦水坝一座，集水池1个 | H120: 2025年1月--2025年12月 | I120: 45.375979 | J120: 41 | K120: 34 | O120: 7 | R120: 1 | T120: 103 | U120: 412 | V120: 30 | W120: 90 | Z120: 农业农村局 | AA120: 八江镇 | AB120: 完成长1980米*0.3*0.3米三面光水利,φ300PE管420米，拦水坝一座，集水池1个 | AC120: 解决农作物灌溉问题，改善基础设施，方便103户412人出行，提高收入水平。
A121: 106 | B121: 独峒镇 | C121: 岜团村 | D121: 独峒镇岜团村集体复垦田水利工程 | E121: 乡村建设行动 | F121: 新建 | G121: 新建给水管1719米，其中1#DN200PE管741米;2#de75PE管1033米:de32PE管3米:de63PE管4米。共计出水口7处,de32PE闸阀3个，de63PE闸阀4个。本项目有40米架空给水管 | H121: 2025年3月--2025年12月 | I121: 14.149611 | J121: 12 | K121: 12 | S121: 1 | T121: 55 | U121: 253 | V121: 23 | W121: 100 | Z121: 农业农村局 | AA121: 独峒镇 | AB121: 完成水利设施网管1.719千米，及配套设施建设。 | AC121: 完善脱贫村农田水利设施建设，灌溉水田20亩，40亩旱地，鱼塘5亩，受益55户253人。
A122: 107 | B122: 独峒镇 | C122: 干冲村 | D122: 独峒镇干冲村渠桂交至岑苗农田水利灌溉项目 | E122: 乡村建设行动 | F122: 新建 | G122: 新建de75给水管382米，de110给水管352米，de160给水管1785米，de200给水管4940米，新建拦水坝2座，新建集水井1座，新建阀门井及配套阀门52个 | H122: 2025年3月--2025年12月 | I122: 90.607668 | J122: 81.16014 | K122: 40.16014 | L122: 35 | O122: 6 | S122: 1 | T122: 500 | U122: 3657 | V122: 42 | W122: 230 | Z122: 农业农村局 | AA122: 独峒镇 | AB122: 完成水利水管铺设7.459千米及配套设施。 | AC122: 解决贫困村屯级生活生产问题，改善贫困村农业水利基础设施，方便500户3657人500亩农业安全生产。
A123: 108 | B123: 独峒镇 | C123: 干冲村 | D123: 独峒镇干冲村顶真明条庙至岑蛮农田水利灌溉项目 | E123: 乡村建设行动 | F123: 新建 | G123: 新建de63给水管890米，de110给水管2415米，de160给水管715米，de200给水管1110米，新建拦水坝9座，新建集水井2座，新建阀门井及配套阀门16个。 | H123: 2025年3月--2025年12月 | I123: 36.1351 | J123: 32 | K123: 25 | O123: 7 | S123: 1 | T123: 250 | U123: 1284 | V123: 50 | W123: 210 | Z123: 农业农村局 | AA123: 独峒镇 | AB123: 完成水利水管铺设5.13千米及配套设施。 | AC123: 解决贫困村屯级生活生产问题，改善贫困村农业水利基础设施，方便250户1284人250亩农业安全生产。
A124: 109 | B124: 独峒镇 | C124: 岜团村 | D124: 独峒镇岜团村良工水利修复工程 | E124: 乡村建设行动 | F124: 新建 | G124: PE200水管25米，PE100管100米，步道硬化268米，水渠三面光及盖板133米 | H124: 2025年3月--2025年12月 | I124: 11.590688 | J124: 10 | K124: 10 | S124: 1 | T124: 32 | U124: 142 | V124: 10 | W124: 42 | Z124: 农业农村局 | AA124: 独峒镇 | AB124: 完成水利设施网管修建0.258千米及配套设施建设。 | AC124: 完善脱贫村农田水利设施建设，灌溉水田30亩，25亩旱地，鱼塘3亩，受益32户142人。
A125: 110 | B125: 独峒镇 | C125: 林略村 | D125: 独峒镇林略村塘围农田水渠灌溉项目 | E125: 乡村建设行动 | F125: 新建 | G125: 新建0.3*03m三面光水渠793米：新建0.3*0.3m盖板沟142米：新建PE100引水管96米：新建0.5*0.5m盖板沟1211米：新建拦水坝1座。 | H125: 2025年3月--2025年12月 | I125: 76.43321 | J125: 68.83986 | K125: 45.83986 | L125: 20 | O125: 3 | S125: 1 | T125: 240 | U125: 960 | V125: 50 | W125: 230 | Z125: 农业农村局 | AA125: 独峒镇 | AB125: 完成农田水渠三面光2.146千米建设，及配套设施建设。 | AC125: 完善脱贫村农田水利设施建设，灌溉水田65亩，20亩旱地，鱼塘5亩，受益240户960人。
A126: 111 | B126: 独峒镇 | C126: 弄底村 | D126: 独峒镇弄底村弄底屯三团高培水利工程 | E126: 乡村建设行动 | F126: 新建 | G126: 新建给水管966米，其中1#DN110PE管959米;2#de63PE管3米;de32PE管4米。共计出水口7处,出水口de32PE闸阀4个，排泥de63PE闸阀3个。新建3米长，0.6米高拦水坝一座。 | H126: 2025年3月--2025年12月 | I126: 5.538366 | J126: 4 | K126: 4 | R126: 1 | S126: 80 | T126: 415 | U126: 26 | V126: 127 | Z126: 农业农村局 | AA126: 独峒镇 | AB126: 完成农田水利网管0.966千米及配套设施建设。 | AC126: 解决脱贫村农田灌溉难问题，改善脱贫村农业生产配套设施，项目受益80户415人。
A127: 112 | B127: 程村乡 | C127: 头坪村 | D127: 程村乡头坪村老皮冲水利工程 | E127: 乡村建设行动 | F127: 新建 | G127: 新修三面光水渠800米 | H127: 2025年3月--2025年6月 | I127: 11.68 | J127: 10 | K127: 10 | R127: 1 | S127: 0 | T127: 40 | U127: 267 | V127: 13 | W127: 67 | X127: 0 | Y127: 0 | Z127: 农业农村局 | AA127: 程村乡 | AB127: 拦水坝1座；30*30三面光水渠625米 | AC127: 改善生活生产条件，促进产业发展。
A128: 113 | B128: 程村乡 | C128: 头坪村 | D128: 程村乡头坪村程村上寨屯龙家泠农田水利建设项目 | E128: 乡村建设行动 | F128: 新建 | G128: 拦水坝2座；30*30三面光水渠1493米 | H128: 2025年3月--2025年6月 | I128: 27.61 | J128: 24 | K128: 24 | Z128: 农业农村局 | AA128: 程村乡 | AB128: 拦水坝2座；30*30三面光水渠1493米 | AC128: 改善头坪村的水利工程设施，提高农作物收成，促进群众经济收入增高。
A129: 114 | B129: 程村乡 | C129: 泗里村坪潺屯 | D129: 程村乡泗里村坪潺屯大虫泠农田水利设施建设项目 | E129: 乡村建设行动 | F129: 新建 | G129: 拦水坝3座；30*30三面光水渠555米；DN200PE管75米；DN110PE管1124米 | H129: 2025年3月--2025年6月 | I129: 26.47 | J129: 23 | K129: 23 | Z129: 农业农村局 | AA129: 程村乡 | AB129: 完成建设拦水坝3座；三面光水渠555米；DN200PE管75米；DN110PE管1124米 | AC129: 改善泗里村的水利工程设施，提高农作物收成，促进群众经济收入增高。
A130: 115 | B130: 和平乡 | C130: 板六村 | D130: 和平乡板六村农田水利设施建设工程 | E130: 乡村建设行动 | F130: 新建 | G130: 修建三面光水沟2200米宽30厘米、高30厘米、厚10厘米（东岭屯1200米；靖州屯1000米）：650米三面光水沟变更为DN200PE管，水源头另增加80米DN200PE管；原水坝变更为高30厘米长1.5米，厚度50厘米的小型拦水坝，水源头新增一个长2米宽1米高80厘米集水井。 | H130: 2025年1月-2025年6月 | I130: 33.09 | J130: 29 | K130: 9.927 | L130: 19.073 | S130: 1 | T130: 175 | U130: 365 | V130: 39 | W130: 147 | Z130: 农业农村局 | AA130: 和平乡 | AB130: 完成修建三面光水沟1550米，730米DN200PE管铺设，一个小型拦水坝，一个集水井 | AC130: 完善农户产业发展条件，促进产业发展，促进农户增收，涉及100亩农田，直接受益175户365人。
A131: 116 | B131: 老堡乡 | C131: 车田村 | D131: 老堡乡车田村农田水利设施建设工程（红渔江至长古、口寨屯老边寨） | E131: 乡村建设行动 | F131: 新建 | G131: 新建2200米三面光水利，拦水坝一个 | H131: 2025年3月--2025年12月 | I131: 62.76 | J131: 56 | K131: 20 | L131: 30 | O131: 6 | R131: 1 | T131: 296 | U131: 1142 | Z131: 农业农村局 | AA131: 老堡乡 | AB131: 完成水利及配套设施建设，宽度大于30厘米，管道直径不小于110毫米。 | AC131: 解决车田村农田灌溉用水，方便296户1142人粮食种植问题，项目建成后，农业产业将得到大力发展，有效治理撂荒非粮化
A132: 117 | B132: 老堡乡 | C132: 坡头村 | D132: 老堡乡坡头村坡头屯大水库水利项目 | E132: 乡村建设行动 | F132: 新建 | G132: 维修长500米、铺设管道， | H132: 2025年3月--2025年12月 | I132: 11.2 | J132: 10 | K132: 10 | R132: 1 | T132: 60 | U132: 360 | V132: 8 | W132: 24 | Z132: 农业农村局 | AA132: 老堡乡 | AB132: 完成500米灌溉水利。 | AC132: 改善面上村灌溉设施，方便60户360人种植水稻粮食。
A133: 118 | B133: 高基乡 | C133: 白郡村 | D133: 高基乡白郡村六亚学校背至庙底农田水利 | E133: 乡村建设行动 | F133: 新建 | G133: 农田水利宽0.3米*高0.3米*壁厚0.1米*长1500变更为160米三面光水渠50*50，新增88米的30*30水渠 | H133: 2025年3月--2025年12月 | I133: 44.294496 | J133: 40 | K133: 37 | O133: 3 | R133: 1 | S133: 0 | T133: 57 | U133: 204 | V133: 12 | W133: 42 | Z133: 农业农村局 | AA133: 高基乡 | AB133: 完成农田水利建设1500米 | AC133: 促进产业发展，完善配套设施，灌溉面积90亩。
A134: 119 | B134: 高基乡 | C134: 桐叶村 | D134: 高基乡桐叶村桐拉屯农田水利灌溉工程 | E134: 乡村建设行动 | F134: 新建 | G134: 新增水管1000米 | H134: 2025年3月--2025年12月 | I134: 9.71 | J134: 8 | K134: 8 | R134: 1 | S134: 0 | T134: 26 | U134: 107 | V134: 11 | W134: 40 | Z134: 农业农村局 | AA134: 高基乡 | AB134: 完成水源1000米水管铺设，及配套设施建设。 | AC134: 解决50亩水稻种植水源问题，提高群众种植积极性。
A135: 120 | B135: 高基乡 | C135: 白郡村 | D135: 高基乡白郡村上白郡屯农田水利设施工程（拿应至老脚至应科田边） | E135: 乡村建设行动 | F135: 新建 | G135: 农田水利宽0.3米*高0.3米*壁厚0.1米*长1500 | H135: 2025年3月--2025年12月 | I135: 25.62 | J135: 23 | K135: 23 | R135: 1 | S135: 0 | T135: 52 | U135: 192 | V135: 13 | W135: 53 | Z135: 农业农村局 | AA135: 高基乡 | AB135: 完成农田水利建设1500米 | AC135: 促进产业发展，完善配套设施，灌溉面积120亩。
A136: 121 | B136: 高基乡 | C136: 高基村 | D136: 高基乡高基村高基屯十三段农田水利项目 | E136: 乡村建设行动 | F136: 新建 | G136: 拦水坝1座；40*40三面光盖板水渠865米；DN160PE管110米 | H136: 2025年3月--2025年6月 | I136: 17.03 | J136: 15 | K136: 15 | Z136: 农业农村局 | AA136: 高基乡
A137: 122 | B137: 良口乡 | C137: 燕茶村 | D137: 良口乡燕茶村燕子屯小型农田水利三面光硬化 | E137: 乡村建设行动 | F137: 新建 | G137: （1）燕茶村燕子屯平宽小型农水利三面光硬化长600米0.30米X0.30米。(受益群众2500人，农田150亩） （2）燕茶村燕子，布交屯高后田段农田水利三面光硬化长600米X0.30X0.30，(需修2处拦水坝)。（受群众3000人，农田200亩) （3）燕茶村大茶屯冲小农田水利三面光硬化长800米X0.30X0.30 | H137: 2025年3月－2025年12月 | I137: 63.653409 | J137: 57 | K137: 44 | L137: 13 | S137: 1 | T137: 600 | U137: 3000 | V137: 275 | W137: 1500 | Z137: 农业农村局 | AA137: 良口乡 | AB137: 目建成后可解决脱贫村农田供水问题，改善基础设施，可便于恢复水毁、撂荒农田近100亩，项目惠及基本农田550多亩 | AC137: 改善燕茶村的生产生活条件，促进产业增收
A138: 123 | B138: 洋溪乡 | C138: 玉民村 | D138: 洋溪乡玉民村珠荣扛至引两拥三面光水利项目 | E138: 乡村建设行动 | F138: 新建 | G138: 新建玉民村珠荣扛至引两拥1.5公里30cm*30cm三面光水利项目 | H138: 2025年3月--2025年12月 | I138: 9.674901 | J138: 9 | K138: 9 | R138: 0 | S138: 1 | T138: 61 | U138: 308 | V138: 61 | W138: 308 | X138: 0 | Y138: 0 | Z138: 农业农村局 | AA138: 洋溪乡 | AB138: 完成新建珠荣扛至引两拥三面光水利项目 | AC138: 便于洋溪乡玉民村耕作区发展生产
A139: 124 | B139: 洋溪乡 | C139: 玉民村 | D139: 洋溪乡玉民村负背至两足三面光水利项目 | E139: 乡村建设行动 | F139: 新建 | G139: 新建玉民村负背至两足1公里30cm*30cm三面光水利项目 | H139: 2025年3月--2025年12月 | I139: 9.41 | J139: 8 | K139: 8 | R139: 0 | S139: 1 | T139: 93 | U139: 580 | V139: 13 | W139: 77 | X139: 0 | Y139: 0 | Z139: 农业农村局 | AA139: 洋溪乡 | AB139: 原项目总投资9.411509万元，实际投资9.41万元。因有一段三面光水渠路段运不了材料进场。经与设计、监理到现场进行勘察，现将三面光水渠变更 为de200PE管95米。 该项目核减项：1、95米新建渠道（三面光水渠）核减1.178万元 核增项：1、1.3136万元 | AC139: 便于洋溪乡玉民村耕作区发展生产
A140: 125 | B140: 洋溪乡 | C140: 洋溪村 | D140: 洋溪乡洋溪村古瓦屯边大至支言水渠农田水利设施建设工程 | E140: 乡村建设行动 | F140: 新建 | G140: 新建长500米30cm*30cm三面光 | H140: 2025年3月--2025年12月 | I140: 5.018617 | J140: =K140+L140+P140+M140+N140+O140+Q140 -> 4 | K140: 4 | R140: 0 | S140: 1 | T140: 45 | U140: 185 | V140: 23 | W140: 92 | X140: 0 | Y140: 0 | Z140: 农业农村局 | AA140: 洋溪乡 | AC140: 为村民发展产业提供便利，促进生产发展
A141: 126 | B141: 洋溪乡 | C141: 勇伟村 | D141: 洋溪乡勇伟村寨保屯农田水利设施建设工程项目 | E141: 乡村建设行动 | F141: 新建 | G141: 寨保屯水利修复4处，共100米 | H141: 2025年3月--2025年12月 | I141: 8.777675 | J141: 8 | K141: 8 | R141: 0 | S141: 1 | T141: 58 | U141: 268 | V141: 13 | W141: 60 | X141: 0 | Y141: 0 | Z141: 农业农村局 | AA141: 洋溪乡 | AC141: 保障农户发展产业有稳定水源供给
A142: 127 | B142: 洋溪乡 | C142: 玉民村 | D142: 洋溪乡珠荣扛至松都九三面光水利项目 | E142: 乡村建设行动 | F142: 新建 | G142: 新建玉民村珠荣扛至松都九2公里30cm*30cm三面光水利项目 | H142: 2025年3月--2025年12月 | I142: 26.837055 | J142: 24 | K142: 24 | R142: 0 | S142: 1 | T142: 61 | U142: 308 | V142: 61 | W142: 308 | X142: 0 | Y142: 0 | Z142: 农业农村局 | AA142: 洋溪乡 | AB142: 原项目总投资26.862574万元，实际投资26.837055万元。因水源处近期无法供水，导致项目无法进行三面光捞浆施工。加上该渠道途径地质不稳定，多处存在塌方，村民极力要求将整条水渠长750的混凝土三面光，变更为DN200PE管。 该项目核减项：1、人工挖沟槽核减0.379572万元；2、碎石垫层核减0.561919万元；3、C20混凝土渠道底板核减2.499788万元；4、C20混凝土渠道边墙核减3.1392万元；5、渠道模版制作、安装核减2.8651.5万元；6、伸缩缝核减0.01609万元；7、挡土墙核减0.537115万元；8、材料二次运输核减0.758254万元。共计核减：10.757087万元。 核增项：1、750米DN200PE管（1.25MP）核增10.37025万元；2、水渠沉沙池4个核增0.386836万元。核增共计10.757086万元。 | AC142: 便于洋溪乡玉民村耕作区发展生产
A143: 128 | B143: 洋溪乡 | C143: 玉民村 | D143: 洋溪乡玉民村更初至付足下里三面光水利项目 | E143: 乡村建设行动 | F143: 新建 | G143: 新建玉民村更初至付足下1.5公里30cm*30cm三面光水利项目 | H143: 2025年3月--2025年12月 | I143: 18.057855 | J143: 16 | K143: 16 | R143: 0 | S143: 1 | T143: 74 | U143: 440 | V143: 38 | W143: 211 | X143: 0 | Y143: 0 | Z143: 农业农村局 | AA143: 洋溪乡 | AB143: 原项目总投资18.076145万元，实际投资18.057855万元。因有一段三面光水渠路段运不了材料进场。经与设计、监理到现场进行勘察，现将三面光水渠变更 为de200PE管330米。 核减项：1、330米新建渠道（三面光水渠）核减4.125万元。 核增项：330米DE200PE100塑料管(热熔连接)，公称压力1.25Mpa，公称壁厚8.1mm核增4.56291万元。 | AC143: 便于洋溪乡玉民村耕作区发展生产
A144: 129 | B144: 富禄乡 | C144: 培进村 | D144: 富禄乡培进村农田水利建设工程项目 | E144: 乡村建设行动 | F144: 新建 | G144: 乌归虾至松弄水利三面光:底30X高40X高40、厚度均为10CM长1500米；乌归虾至南上水利三面光:底30X高40X高40、厚度均为10CM长1500米；乌归虾至南上水利三面光:底30X高40X高40、厚度均为10CM长1500米；正乌至乌列胶管：水管内空直径20CM、长1500米；归朱奶至北洛送胶管：75水管长300米。 | H144: 2025年3月--2025年12月 | I144: 91.46538 | J144: 82 | K144: 60.2027 | L144: 21.7973 | S144: 1 | T144: 318 | U144: 1590 | V144: 291 | W144: 1455 | Z144: 农业农村局 | AA144: 农业农村局（农田办） | AB144: 完成水利建设，促进产业发展 | AC144: 解决群众农田水利问题，促进产业发展，增加群众收入
A145: 130 | B145: 富禄乡 | C145: 岑洞村 | D145: 富禄乡岑洞村永两务至两故优农田水利设施建设工程 | E145: 乡村建设行动 | F145: 新建 | G145: 永两务至两故优管道水利：主管50#长500米、支管40#2000米。永古奋至冲马脑管道水利：主管50#长500米、支管40#1500米。永留至冲底管道水利：主管50#长300米、支管40#1000米。松福至冲深管道水利：主管50#长600米、支管40#1000米。 | H145: 2025年3月--2025年12月 | I145: 26.825216 | J145: 23.257966 | K145: 23.257966 | S145: 1 | T145: 317 | U145: 2119 | V145: 121 | W145: 855 | Z145: 农业农村局 | AA145: 富禄乡 | AB145: 完成管道水利长7400米，及配套设施建设，灌溉水田80亩。 | AC145: 解决贫困村屯粮食安全问题，灌溉基本农田。
A146: 131 | B146: 富禄乡 | C146: 岑旁村 | D146: 富禄乡岑旁村农田水利灌溉项目 | E146: 乡村建设行动 | F146: 新建 | G146: 岑羊至广种片区水管1500米.安装63管;归高难至归太片区水管1500米.安装80管;归高难至归太片区水管1500米.安装80管;归茶片区水管500米.安装63管;归茶至机山片区水管400米.安装63管；归岑牙片区水管300米.安装63管。 | H146: 2025年3月--2025年12月 | I146: 54.636558 | J146: 49.099734 | K146: 36.099734 | L146: 13 | S146: 1 | T146: 433 | U146: 1838 | V146: 226 | W146: 1016 | Z146: 农业农村局 | AA146: 富禄乡 | AB146: 完成农田水利灌溉，及配套设施建设。 | AC146: 解决贫困村农田水利灌溉问题，改善贫困村基础设施。
A147: 132 | B147: 富禄乡 | C147: 龙奋村 | D147: 富禄乡龙奋村引两王农田水利设施建设工程 | E147: 乡村建设行动 | F147: 新建 | G147: 引两王农田水利长1960米，PE管直径160毫米 | H147: 2025年3月--2025年12月 | I147: 30.813062 | J147: 27.6423 | K147: 27.6423 | S147: 1 | T147: 428 | U147: 2186 | V147: 275 | W147: 1422 | Z147: 农业农村局 | AA147: 富禄乡 | AB147: 完成1960米水利灌溉饮水，便于灌溉400亩左右基本农田，保障龙奋村种粮安全。 | AC147: 方便428户2192人农业生产。
A148: 133 | B148: 梅林乡 | C148: 新民村 | D148: 梅林乡新民村省口屯水利农渠拦水坝项目 | E148: 乡村建设行动 | F148: 新建 | G148: 1.拦水坝10m长，高2.0m,0.3*0.3渠道95m 2.拦水坝5m长,高2.0m,0.3*0.3渠道125m 3.拦水坝6m长,高2.0m,0.3*0.3渠道80m 4.拦水坝15m长,高1.5m,0.3*0.3渠道100m 5.拦水坝9m长高1.5m,，pe50水管长440m 6.拦水坝5m长,高1.5m,0.3*0.3渠道130m 7.拦水坝8m长,高2.0m,0.3*0.3渠道15m 8.拦水坝6m长,高1.5m,0.3*0.3渠道180m 9.拦水坝6m长，高2.0m,pe200水管长110m 10.拦水坝9m长,高1.5m,0.3*0.3渠道40m | H148: 2025年1月--2025年12月 | I148: 30.808414 | J148: 27 | K148: 27 | S148: 1 | T148: 253 | U148: 1139 | V148: 94 | W148: 378 | X148: 0 | Y148: 0 | Z148: 农业农村局 | AA148: 梅林乡 | AB148: 解决产业发展，防止水毁农田 | AC148: 改善新民村生产生活条件，促进产业发展
A149: 134 | B149: 同乐乡 | C149: 归夯村 | D149: 同乐乡归夯村归交水利建设工程 | E149: 乡村建设行动 | F149: 新建 | G149: 新建水利三面光。长度4000米，规格40*30*12， | H149: 2025年1月-2025年4月 | I149: 100.993789 | J149: 95 | K149: 47 | L149: 40 | O149: 8 | S149: 1 | T149: 418 | U149: 1800 | V149: 220 | W149: 967 | Z149: 农业农村局 | AA149: 同乐乡 | AB149: 完成新建三面光水利4公里，及配套基础设施建设，保障418户1800人粮食安全生产问题。 | AC149: 完善农田水利设施，改善产业发展环境，提升农田产出收益，增加农民产业收入，保障418户1800人粮食安全。
A150: 135 | B150: 同乐乡 | C150: 高洋村 | D150: 同乐乡高洋村高洋屯农田水利设施建设工程（松昂至周耶） | E150: 乡村建设行动 | F150: 新建 | G150: 1、新建0.2x0.3m三面光水渠总长185米；2、160PE管总长1000米。 | H150: 2025年1月-2025年4月 | I150: 11.130897 | J150: 10 | K150: 10 | S150: 1 | T150: 561 | U150: 2616 | V150: 166 | W150: 736 | Z150: 农业农村局 | AA150: 同乐乡 | AB150: 完成2000米三面光水渠，为高洋村2个生产组耕种区，提供水源灌溉，保障农户正常耕种生产，确保土地非粮化 | AC150: 完成2000米三面光水渠，为高洋村2个生产组耕种区，提供水源灌溉，保障农户正常耕种生产，确保土地非粮化，保障561户2616人粮食安全。
A151: 136 | B151: 同乐乡 | C151: 归东村 | D151: 同乐乡归东村农田水利设施建设工程 | E151: 乡村建设行动 | F151: 新建 | G151: 新建0.3*03m三面光水渠848米；新建0.4*0.4m水渠781米；新建0.5*0.5m水渠843米；新建1*1m水渠202米；新建50PE引水管663米；新建63PE引水管746米；新建75PE引水管114米：新建160PE引水管64米：新建100PE引水管328米；新建200PE引水管246米 | H151: 2025年1月-2025年4月 | I151: 76.429473 | J151: 69 | K151: 45.7973 | L151: 17.2027 | O151: 6 | S151: 1 | T151: 560 | U151: 2277 | V151: 305 | W151: 1274 | Z151: 农业农村局 | AA151: 农业农村局（农田办） | AB151: 完成水利三面光硬化0.3公里，改善560户，2277人粮食安全问题。 | AC151: 完善农田水利设施，改善产业发展环境，提升农田产出收益，增加农民产业收入，保障560户2277人粮食安全。
A152: 137 | B152: 同乐乡 | C152: 归美村 | D152: 同乐乡归美村高达屯命美生至乌成美孝农田水利设施建设工程 | E152: 乡村建设行动 | F152: 新建 | G152: 1、新建三面光水渠总长1506米（其中0.3x0.3m三面光水渠1441米；0.2x0.2m三面光水渠65米）；2、de75PE管总长477米；3、新建拦水坝一座。 | H152: 2025年1月-2025年4月 | I152: 24.037332 | J152: 21 | K152: 21 | S152: 1 | T152: 150 | U152: 600 | V152: 50 | W152: 213 | Z152: 农业农村局 | AA152: 同乐乡 | AB152: 完成水利三面光硬化1.2公里，改善110户，460人粮食安全问题。 | AC152: 完善农田水利设施，改善产业发展环境，提升农田产出收益，增加农民产业收入，保障150户600人粮食安全。
A153: 138 | B153: 同乐乡 | C153: 归美村 | D153: 同乐乡归美村归纳屯农田水利设施建设工程 | E153: 乡村建设行动 | F153: 新建 | G153: 新建0.3米*0.3米三面光水渠1891米；新建0.5米*0.5米三面光水渠2米；新建1座长2.5米，高0.5米拦水坝；新建1.5m高护肩挡土墙17米；新建直径0.3m混凝土管沟11米；新建DN110给水管62米，其中有30米需架管， | H153: 2025年1月-2025年4月 | I153: 36.310138 | J153: 32 | K153: 32 | S153: 1 | T153: 323 | U153: 1503 | V153: 95 | W153: 393 | Z153: 农业农村局 | AA153: 同乐乡 | AB153: 完成水利三面光硬化1.8公里，改善323户，1503人粮食安全问题。 | AC153: 完善农田水利设施，改善产业发展环境，提升农田产出收益，增加农民产业收入，保障323户1503人粮食安全。
A154: 139 | B154: 和平乡 | C154: 六溪村 | D154: 和平乡六溪村农田水利设施建设工程 | E154: 乡村建设行动 | F154: 新建 | G154: 拦水坝2座；dn90pe管1537米；30*30三面光水渠2272米；维修水渠597米；埋设30直径砼涵管8米；破除旧水渠469米 | H154: 2025年1月-2025年4月 | I154: 49.47 | J154: 44 | K154: =14.841+23.232 -> 38.073 | L154: 5.927 | T154: 478 | U154: 1735 | V154: 64 | W154: 255 | Z154: 农业农村局 | AA154: 和平乡 | AB154: 完善我村农田水利灌溉建设：1.新建de90PE引水管长度1537米；2.新建300*300水渠2272米；3.原水渠维修597米；4.破除原水渠469米；5.埋设φ30涵管8米。6.新建拦水坝一座，长9米，高1.4米。 | AC154: 解决群众种田缺水及防洪问题，提高群众种粮积极性，粮食增产增收，直接受益478户1735人.。
A155: 140 | B155: 林溪镇 | C155: 林溪村 | D155: 林溪镇林溪村新寨务难水利管道项目 | E155: 乡村建设行动 | F155: 新建 | G155: 1#,2#水源拦水坝:两座，分别2m*1m高；de160PE100管：1010m，分水阀若干 | H155: 2025年1月-2025年4月 | I155: 9.706013 | J155: 8 | K155: 8 | R155: 1 | S155: 0 | T155: 56 | U155: 271 | V155: 8 | W155: 39 | X155: 3 | Y155: 13 | Z155: 农业农村局 | AA155: 林溪镇 | AB155: 完成该屯56户水利配套设施 | AC155: 解决了全屯56户271人的水利灌溉问题
A156: 141 | B156: 南站社区 | C156: 南站社区 | D156: 三江侗族自治县南站社区地摊经济市场项目 | E156: 产业发展 | F156: 续建 | G156: 三江县南站社区地摊经济市场项目，总建筑面积 889.56平方米。主要建设内容包括建筑工程、装饰装修工程、给排水工程、电气工程、通风工程、消防工程以及室外绿化、给排水、供配电等。 | H156: 2024年6月-2025年4月 | I156: 50 | J156: 45 | K156: 45 | Z156: 农业农村局 | AA156: 农业农村局（乡村振兴综合服务中心） | AB156: 拟建商业用房及公厕各1栋，框架结构，总建筑面积890.33㎡，其中商业用房为两层建筑，建筑面积为876.68㎡，公厕为单层建筑，建筑面积为13.65㎡，围墙305m，场地硬化3700㎡，绿化面积776㎡实现村民就近就业，助推当地村集体经济发展。 数量指标：商业用房为两层建筑，建筑面积为876.68㎡，公厕为单层建筑，建筑面积为13.65㎡； 质量指标：项目验收合格率100％；项目资金支出合规率100％； 时效指标：完工及时率＝100％，项目完工验收时间≤2025年12月； 成本指标：项目建成总成本≤420万元； | AC156: 一是可依托当地党支部搭建平台。搭建农户自主经营惠民平台，依托党支部提供场地和培训，鼓励周边村民群众通过租赁摊位参与经济发展，着力培养出能推动村级集体经济快速发展的骨干中坚力量。二是小摊位促进大增收。以“小摊位”带动本地群众家门口就业的同时，依靠出租摊位促成村集体收益，形成可固定、可持续、可增长的良好发展态势。三是配套设施提升服务。以环境综合整治为着力点，可在服务区设置保洁员等公益岗位，开展周边环境卫生治理、卫生间维护等工作，全面改善道路环境，完善卫生间等基础设施，不断刷新易安小区周边村镇整体“颜值”的同时，拓宽为民助民渠道，不断富裕村民“口袋”。同时预计可设40个摊位，预计可带动直接从事“地摊经济“约 130 人，间接带动从事产业链相关人员就业预计可达 400 人。实现村民就近就业，助推当地村集体经济发展。 | AD156: 续建项目
A157: 142 | B157: 古宜镇 | C157: 大竹村 | D157: 三江侗族自治县苗木交易市场项目 | E157: 产业发展 | F157: 续建 | G157: 建筑面积 2132.50 平方米，其中 1#楼为一栋附属管理用房，为两层 建筑，建筑面积约为 432.50 平方米，2#楼为一栋市场用房，为 两层建筑，建筑面积约为 1700 平方米。 | H157: 2024年6月-2025年4月 | I157: 100 | J157: 90 | K157: 90 | Z157: 农业农村局 | AA157: 农业农村局（乡村振兴综合服务中心） | AB157: 有效繁荣三江苗木经济，存进三江县特色产业 的发展及壮大。建成三江侗族自治县苗木交易市场项目，总建筑 面积 2132.50 平方米，总体目标为在建设期 1.5 年内各建设内 容全部交工验收合格 | AC157: 项目建成后将形成“一站式”种苗交易市场平台。是一项惠及广大人民群众,并带动种苗、商业、物流相关产业共同发展的一项惠民工程,也是一项调整项目所在县农业产业化结构、增加农民收入的战略性举措, 极大地促进地方经济建设快速发展。项目建设有利于三江地方农产品产业自身的发展和市场的需求,为当地农业企业、农户提供具备竞争优势的交易平台,项目建设已具备了较有利的条件,项目具有良好的经济效益、社会效益,也有较强抗风险能力,项目建设必要性充足,有建设价值 | AD157: 续建项目
A158: 143 | B158: 古宜镇 | C158: 大竹村 | D158: 古宜镇大竹村杉木产业基地产业路硬化项目（县填埋场至深冲岭) | E158: 产业发展 | F158: 新建 | G158: （1）混凝土道路 1.852公里，本生产路为砼路面道路，路肩宽0.5m；（2）φ0.6涵管6.0米;（3）新建混凝土排水沟964米;(4)破除旧路面5900平方(5)竣工牌1块 | H158: 2025年3月--2025年12月 | I158: 123.9779 | J158: 111 | L158: 111 | R158: 1 | T158: 932 | U158: 3670 | V158: 73 | W158: 264 | Y158: 0 | Z158: 农业农村局 | AA158: 农业农村局（乡村振兴综合服务中心） | AB158: 完成硬化路面长2.5公里，及配套设施建设。方便932户3670人高质量发展产业。 | AC158: 解决大竹村村民通车运输农产品问题，改善村基础设施，方便932户3670人高质量发展产业。
A159: 144 | B159: 古宜镇 | C159: 文大村 | D159: 古宜镇文大村大坪屯油茶产业基地产业路硬化项目（公路至松冲口） | E159: 产业发展 | F159: 新建 | G159: （1）混凝土道路:道路宽度：0.35米，道路总长0.79公里，本生产路为砼路面道路，路肩宽0.5m；（2）旧路面破除1452.5㎡；（3）竣工牌2块 | H159: 2025年3月--2025年12月 | I159: 57.7536 | J159: 51 | L159: 51 | R159: 1 | T159: 77 | U159: 319 | V159: 5 | W159: 24 | X159: 1 | Y159: 3 | Z159: 农业农村局 | AA159: 农业农村局（乡村振兴综合服务中心） | AB159: 完成硬化路面长1公里，及配套设施建设。解决大坪屯村民通车运输农产品问题，改善村基础设施，方便77户318人高质量发展产业。 | AC159: 解决大坪屯村民通车运输农产品问题，改善村基础设施，方便77户318人高质量发展产业。
A160: 145 | B160: 丹洲镇 | C160: 六孟村 | D160: 丹洲乡六孟村甲塘至古济冲（孟公）产业路项目 | E160: 产业发展 | F160: 新建 | G160: 总里程0.509km，新建碎石路面0.509km，路基宽5.5m,路面宽4.5m；新建1-5*5m盖板涵，1-2*2m盖板涵 | H160: 2025年3月--2025年12月 | I160: 55.577674 | J160: 50 | L160: 50 | R160: 1 | T160: 512 | U160: 1746 | V160: 51 | W160: 190 | X160: 0 | Y160: 0 | Z160: 农业农村局 | AA160: 农业农村局（乡村振兴综合服务中心） | AB160: 新建公路长2.5公里、及配套排水设施建设 | AC160: 减少农产品运输成本，带动产512户1746人业发展
A161: 146 | B161: 丹洲镇 | C161: 西坡村 | D161: 丹洲镇西坡村下段屯至白石坡产业路硬化 | E161: 产业发展 | F161: 新建 | G161: 硬化路面长3公里、路面宽3.5米、厚20厘米，压实砂石基层厚18厘米；两边培路肩宽各0.5米；合理设置涵洞、边沟、错车道等 | H161: 2025年3月--2025年12月 | I161: 178.8141 | J161: 160 | L161: 160 | R161: 1 | T161: 41 | U161: 195 | V161: 2 | W161: 7 | X161: 0 | Y161: 0 | Z161: 农业农村局 | AA161: 农业农村局（乡村振兴综合服务中心） | AB161: 解决西坡村下段屯茶叶50亩，油茶80亩，杉木4000多亩等产业运输问题，改善下段屯生产生活条件，方便群众发展产业。 | AC161: 改善西坡村下段屯的生产生活条件，促进产业发展，使村民得到增收，方便群众发展产业。
A162: 147 | B162: 斗江镇 | C162: 扶平村 | D162: 斗江镇扶平村杉木基地建设项目（广南冲至甘岭） | E162: 产业发展 | F162: 新建 | G162: 总里程3.215km，本工程路基宽为4.5米；路面宽：3.5米；路面结构层拟定为：15cm厚碎石垫层（就地取材）+2cm厚磨耗层路面，土路肩（两边做），新建圆管涵96m/12道，错车道10处，竣工碑一座 | H162: 2025年3月--2025年12月 | I162: 78.530283 | J162: 70 | L162: 70 | S162: 1 | T162: 269 | U162: 1055 | V162: 74 | W162: 299 | Z162: 农业农村局 | AA162: 农业农村局（乡村振兴综合服务中心） | AB162: 完成产业路4公里建设。 | AC162: 解决农副产品运输问题，方便269户1055人发展产业及出行。
A163: 148 | B163: 斗江镇 | C163: 沙宜村 | D163: 斗江镇沙宜村界脚屯209国道至周家冲产业道路硬化项目 | E163: 产业发展 | F163: 新建 | G163: 总里程1.817km，路基宽为4.5米、路面宽3.5米、路面结构层拟定为:15cm厚碎石垫层+20cm厚C25混凝土路面、土路肩 1817.20㎡(两边做),新建圆管涵42m/6道，错车道6处，新建挡土墙4幅，护栏1140米，竣工碑一座 | H163: 2025年3月--2025年12月 | I163: 133.080989 | J163: 119 | L163: 119 | R163: 1 | T163: 36 | U163: 142 | V163: 7 | W163: 33 | Z163: 农业农村局 | AA163: 农业农村局（乡村振兴综合服务中心） | AB163: 完成硬化路2.5公里，及配套设施建设。 | AC163: 助力产业发展，有效解决村民出行，方便生活生产提升36户142人幸福感。
A164: 149 | B164: 斗江镇 | C164: 思欧村 | D164: 斗江镇思欧村油茶产业基地产业路硬化项目（金城隘屯六稿山） | E164: 产业发展 | F164: 新建 | G164: 新建产业路硬化3公里，路面宽3.5米函板桥10处 | H164: 2025年3月--2025年12月 | I164: 210.8434 | J164: 190 | L164: 190 | S164: 1 | T164: 458 | U164: 1392 | V164: 123 | W164: 407 | Z164: 农业农村局 | AA164: 农业农村局（乡村振兴综合服务中心） | AB164: 完成硬化路面长3公里，及配套设施建设。 | AC164: 解决农副产品运输问题，方便458户1392人发展产业及出行。
A165: 150 | B165: 斗江镇 | C165: 沙宜村 | D165: 斗江镇沙宜村那晚屯209国道至溪边道路硬化项目 | E165: 产业发展 | F165: 新建 | G165: （1）水泥路面616平方米；（2）拆除原有小桥梁，新建一座盖板涵、护栏28米；（3）新建挡土墙高2.0米，长15米；（4）新建盖板沟51米、排水沟39米、φ0.3涵管4.5米 | H165: 2025年3月--2025年12月 | I165: 19.659336 | J165: 18 | K165: 18 | R165: 1 | T165: 12 | U165: 48 | Z165: 农业农村局 | AA165: 农业农村局（乡村振兴综合服务中心） | AB165: 完成硬化路300米，及配套设施建设。 | AC165: 助力产业发展，有效解决村民出行，方便12户48人生活生产。
B166: 斗江镇 | C166: 周牙村 | D166: 斗江镇周牙村石人牙屯道路硬化项目 | E166: 乡村建设行动 | F166: 新建 | G166: 道路硬化长194.3米，路面宽度3.5米。 | H166: 2025年9月--2025年12月 | I166: 10.20 | J166: 10 | Q166: 10 | Z166: 农业农村局 | AA166: 农业农村局（乡村振兴综合服务中心） | AB166: 完成硬化路面长178米。 | AC166: 解决非贫困村产业路路出行问题，方便56户177人生产生活。
A167: 151 | B167: 林溪镇 | C167: 高秀村 | D167: 林溪镇高秀村马哨屯务命加祥油茶产业基地产业道路硬化项目 | E167: 产业发展 | F167: 新建 | G167: 总里程1.438km，路基宽4.5m，铺筑水泥混凝土路面宽3.5m，过路管涵24m,波形护栏1561m，并设竣工碑一座 | H167: 2025年3月--2025年12月 | I167: 118.1831 | J167: 106 | K167: 69 | L167: 37 | T167: 120 | U167: 498 | Z167: 农业农村局 | AA167: 农业农村局（乡村振兴综合服务中心） | AB167: 完成硬化路面长2.6公里，及配套设施建设。 | AC167: 解决高秀村马哨屯务命加祥油茶产业基地道路通车问题，改善基础设施，方便120户498人出行水平。
A168: 152 | B168: 林溪镇 | C168: 合华村 | D168: 林溪镇合华村交桃产业路硬化项目 | E168: 产业发展 | F168: 新建 | G168: 总里程1.251km，路基宽4.5m，铺筑水泥混凝土路面宽3.5m。主要工程：碎石基层、水泥混凝土路面等，并设竣工碑一座 | H168: 2025年3月--2025年12月 | I168: 78.2754 | J168: 74 | K168: 74 | R168: 1 | S168: 0 | T168: 147 | U168: 675 | V168: 28 | W168: 121 | X168: 10 | Y168: 46 | Z168: 农业农村局 | AA168: 农业农村局（乡村振兴综合服务中心） | AB168: 完成硬化路面长1.1公里，及配套设施建设。 | AC168: 解决贫困村与非贫困村屯级道路通车问题，改善贫困村基础设施，方便147户675人出行水平。
A169: 153 | B169: 八江镇 | C169: 汾水村 | D169: 八江镇汾水村高滩屯高山云雾茶产业示范基地建设项目 | E169: 产业发展 | F169: 新建 | G169: （1）混凝土道路 3.011公里，本生产路为砼路面道路，路肩宽0.5m；（2）φ1.0涵管6.0米；（3）竣工牌1块 | H169: 2025年3月--2025年12月 | I169: 176.1453 | J169: 158 | K169: 158 | R169: 0 | S169: 1 | T169: 329 | U169: 1319 | V169: 191 | W169: 921 | Z169: 农业农村局 | AA169: 农业农村局（乡村振兴综合服务中心） | AB169: 硬化路面长3.747公里、路面宽4.5米、厚20厘米，压实砂石基层厚30厘米；两边培路肩宽各0.5米；合理设置涵洞、边沟、错车道等 | AC169: 完善汾水村产业基础设施，促进产业发展，便于群众出行
A170: 154 | B170: 八江镇 | C170: 八斗村 | D170: 八江镇八斗村八斗大屯油茶基地产业路安全防护项目 | E170: 产业发展 | F170: 新建 | G170: 挡土墙1幅50m，公路边沟170m，波形护栏912m，并设竣工碑一座 | H170: 2025年3月--2025年12月 | I170: 47.1315 | J170: 42 | K170: 42 | T170: 1210 | U170: 4110 | V170: 250 | W170: 1057 | Z170: 农业农村局 | AA170: 农业农村局（乡村振兴综合服务中心） | AB170: 完成硬安全防护栏安装1公里，挡土墙58米，高3.7米，排水沟180米，及配套设施建设。 | AC170: 解决贫困村行车安全问题，保障群众出行安全，方便1210户4110人出行。
A171: 155 | B171: 独峒镇 | C171: 林略村 | D171: 独峒镇林略村通大塘坳旅游路提升项目 | E171: 产业发展 | F171: 新建 | G171: （1）新建重力式挡土墙25m，（2）新建仰斜式挡土墙26+77m,（3）新建急流槽：16+18m，（4）新建1－Ф0.8圆管涵：2m，（4）新建排水沟：141m，（5）新建1-3.0*3.0盖板涵：19m，（6）拆除、新建C30防撞墙：32m，（7）破除并恢复路面：15m。 | H171: 2025年3月--2025年12月 | I171: 173.29107 | J171: 155 | K171: 155 | S171: 3 | T171: 887 | U171: 3346 | V171: 105 | W171: 526 | Z171: 农业农村局 | AA171: 农业农村局（乡村振兴综合服务中心） | AB171: 完成旅游道路配套设施建设 | AC171: 完善产业发展基础设施，促进当地村民发展生产。
A172: 156 | B172: 程村乡 | C172: 头坪村 | D172: 程村乡头坪村南山脑至高榜竹木经济林道路建设工程 | E172: 产业发展 | F172: 新建 | G172: 建设内容：新建经济林道路、合理设置边沟、错车道。 建设规模：新建路面长3.5公里、路面宽4.5米厘米合理设置涵洞、边沟、错车道等。 | H172: 2025年3月--2025年12月 | I172: 137.663 | J172: =K172+L172+P172+M172+N172+O172+Q172 -> 123 | K172: 123 | R172: 1 | S172: 0 | T172: 650 | U172: 2400 | V172: 37 | W172: 139 | X172: 5 | Y172: 16 | Z172: 农业农村局 | AA172: 农业农村局（乡村振兴综合服务中心） | AB172: 完成头坪村各屯竹木经济林道路修建。 | AC172: 改善生活生产条件，促进产业发展。
A173: 157 | B173: 和平乡 | C173: 和平村 | D173: 和平乡和平村江脑屯独田（棉山）油茶产业基地配套产业路项目 | E173: 产业发展 | F173: 新建 | G173: 项目总长2.009公里，路基宽为4.5 m，路面宽为3.5 m；采用3 .5m行车道+2×0.5m培土路肩，设置涵洞7道，每道6米，总共42米；全部为新建圆管涵 | H173: 2025年3月--2025年12月 | I173: 146.0324 | J173: 131 | K173: 131 | R173: 1 | T173: 69 | U173: 198 | V173: 14 | W173: 45 | Z173: 农业农村局 | AA173: 农业农村局（乡村振兴综合服务中心） | AB173: 完成3公里产业路建设 | AC173: 解决油茶种植户基地产业路，提高群众发展产业的信心，直接受益69户198人。
A174: 158 | B174: 和平乡 | C174: 清江村 | D174: 和平乡清江村拉州屯至和平村江脑屯通屯砂石路硬化工程 | E174: 产业发展 | F174: 新建 | G174: 硬化通屯砂石路，长3.494公里，路面宽4.5米、盖板涵、挡土墙、防护栏 | H174: 2025年3月--2025年12月 | I174: 319.5291 | J174: 287 | K174: 287 | Z174: 农业农村局 | AA174: 农业农村局（乡村振兴综合服务中心） | AC174: 解决清江村拉州屯至和平村江脑屯道路通车问题，改善基础设施，方便587户1798人出行水平。
A175: 159 | B175: 老堡乡 | C175: 边浪村 | D175: 老堡乡边浪村中草药材基地产业道路硬化项目（上保屯至白云山） | E175: 产业发展 | F175: 新建 | G175: 硬化路面长3公里、路面宽3.5米、厚20厘米，压实砂石基层厚15厘米；两边培路肩宽各0.5米；合理设置涵洞、边沟、错车道等 | H175: 2025年3月--2025年12月 | I175: 188.9409 | J175: 170 | K175: 170 | S175: 1 | T175: 344 | U175: 1557 | V175: 280 | W175: 1293 | X175: 23 | Y175: 99 | Z175: 农业农村局 | AA175: 农业农村局（乡村振兴综合服务中心） | AB175: 完成硬化路面长7公里，及配套设施建设。 | AC175: 解决脱贫村产业道路通车问题，改善脱贫村基础设施，方便344户1557人产业发展。
A176: 160 | B176: 高基乡 | C176: 弓江村 | D176: 高基乡弓江村下九坪至江外油茶基地道路硬化建设项目 | E176: 产业发展 | F176: 新建 | G176: 项目总长1.980公里，路基宽为4.5 m，路面宽为3.5 m；采用3 .5m行车道+2×0.5m培土路肩，设置涵洞13道，12道6米、1道10米；总共82米；全部为新建圆管涵。 | H176: 2025年3月--2025年12月 | I176: 150.8238 | J176: 135 | K176: 135 | R176: 0 | S176: 1 | T176: 195 | U176: 706 | V176: 87 | W176: 319 | Z176: 农业农村局 | AA176: 农业农村局（乡村振兴综合服务中心） | AB176: 完成硬化路面长3.5公里，及配套设施建设。 | AC176: 解决脱贫村油茶基地和集体经济项目养牛基地道路通车问题，改善脱贫村基础设施，方便了130亩油茶林管护，60户350人杉竹出山水平，也便于本村集体经济项目养牛基地发展壮大。
A177: 161 | B177: 高基乡 | C177: 白郡村 | D177: 高基乡白郡村寨旺屯产业路硬化项目（坡墓至拉岜） | E177: 产业发展 | F177: 新建 | G177: 硬项目总长1.532公里，路基宽为4.5 m，路面宽为3.5 m；采用3 .5m行车道+2×0.5m培土路肩，设置涵洞3道，每道6米；总共18米；全部为新建圆管涵。 | H177: 2025年3月--2025年12月 | I177: 139.346 | J177: 125 | K177: 125 | R177: 1 | S177: 0 | T177: 60 | U177: 256 | V177: 5 | W177: 27 | Z177: 农业农村局 | AA177: 农业农村局（乡村振兴综合服务中心） | AB177: 完成硬化路面长1公里，及配套设施建设。 | AC177: 解决村民生产问题，改善基础设施，方便60户256人生产作业。
A178: 162 | B178: 良口乡 | C178: 产口村 | D178: 良口乡产口村新寨屯二组产业路 | E178: 产业发展 | F178: 新建 | G178: 项目总长6.232公里，路基宽为4.5 m，路面宽为3.5 m；采用3 .5m行车道+2×0.5m培土路肩，设置涵洞28道，每道7米，总共196米；全部为新建圆管涵。 | H178: 2025年3月--2025年12月 | I178: 156.933 | J178: 140 | K178: 121 | L178: 19 | S178: 1 | T178: 527 | U178: 1987 | V178: 83 | W178: 349 | Z178: 农业农村局 | AA178: 农业农村局（乡村振兴综合服务中心） | AB178: 项目建成后能改善群众出行以及农作物的运输，有效的降低了群众的运输成本，提高群众的收入 | AC178: 降低运输成本，提高收益，带动产业发展
A179: 163 | B179: 良口乡 | C179: 产口村 | D179: 良口乡产口村寨沙屯油茶基地产业路硬化 | E179: 产业发展 | F179: 新建 | G179: 良口乡产口村寨沙屯油茶基地产业路硬化 | H179: 2025年3月--2025年12月 | I179: 151.9984 | J179: 146 | K179: 124 | L179: 22 | S179: 1 | T179: 527 | U179: 1987 | V179: 83 | W179: 349 | Z179: 农业农村局 | AA179: 农业农村局（乡村振兴综合服务中心） | AB179: 项目建成后有方便群众出行，降低了农作物运输成本，增加群众收入，带动产业发展 | AC179: 改善生产生活条件，降低运输成本，促进产业发展，方便群众出行
A180: 164 | B180: 洋溪乡 | C180: 高露村 | D180: 洋溪乡高露村中寨屯杉木产业基地新建产业路项目(布萨至加甲下) | E180: 产业发展 | F180: 新建 | G180: 路面长4公里、路面宽4.5米，路基6米，压实砂石基层厚15厘米；两边培路肩宽各0.75米；合理设置涵洞、边沟、错车道等 | H180: 2025年3月--2025年12月 | I180: 179.8565 | J180: 161 | K180: 120 | L180: 41 | S180: 1 | T180: 240 | U180: 800 | V180: 46 | W180: 208 | Z180: 农业农村局 | AA180: 农业农村局（乡村振兴综合服务中心） | AB180: 便利高露村产业路输出产业发展 | AC180: 改善高露村的生活件，促进产业运输方便，方便群众出行
A181: 165 | B181: 洋溪乡 | C181: 玉民村 | D181: 洋溪乡玉民村新寨产业基地至两胜刘产业基地新建产业路项目 | E181: 产业发展 | F181: 新建 | G181: 新建新寨产业基地至两胜刘产业基地路面长5公里、路面宽5米产业路。 | H181: 2025年3月--2025年12月 | I181: 181.4899 | J181: 169 | K181: 128 | L181: 41 | S181: 1 | T181: 208 | U181: 1207 | V181: 57 | W181: 316 | Z181: 农业农村局 | AA181: 农业农村局（乡村振兴综合服务中心） | AB181: 完成新建路面长5公里产业路 | AC181: 解决村与村屯级道路通车问题，改善村基础设施，方便群众交通出行安全。
A182: 166 | B182: 洋溪乡 | C182: 信洞村 | D182: 洋溪乡信洞村新村至高记农户联营优质稻基地产业路硬化项目 | E182: 产业发展 | F182: 新建 | G182: 项目总长1.260公里，路基宽为4.5 m，路面宽为3.5 m；采用3 .5m行车道+2×0.5m培土路肩，设置涵洞2道，每道12米，总共24米；全部为新建圆管涵。 | H182: 2025年3月--2025年12月 | I182: 63.9245 | J182: 57 | K182: 42 | L182: 15 | S182: 1 | T182: 478 | U182: 1949 | V182: 271 | W182: 1133 | Z182: 农业农村局 | AA182: 农业农村局（乡村振兴综合服务中心） | AB182: 该基地涉及油茶产业 124 亩、茶叶 320 亩、优质稻 560 亩、杉木 168 亩，项目建成后大大降低农户运输化肥及农副产品的运输成本，改善群众生产生活条件的同时，完善产业基地的配套基础设施。 | AC182: 项目建成后大大降低农户运输化肥及农副产品的运输成本，改善群众生产生活条件的同时，完善产业基地的配套基础设施。受益户478户，受益人口1949人。
A183: 167 | B183: 富禄乡 | C183: 培进村 | D183: 富禄乡培进村列嘎至别塘山油茶基地产业路硬化项目 | E183: 产业发展 | F183: 新建 | G183: 硬化路面长3.5公里、路面宽3.5米、厚20厘米，压实砂石基层厚10厘米；两边培路肩宽各1米；合理设置涵洞、边沟、错车道等 | H183: 2025年3月--2025年12月 | I183: 192.06134 | J183: 172 | K183: 139 | L183: 33 | S183: 1 | T183: 415 | U183: 2145 | V183: 276 | W183: 1422 | Z183: 农业农村局 | AA183: 农业农村局（乡村振兴综合服务中心） | AB183: 完成硬化路面长3.5公里，及配套设施建设。 | AC183: 解决贫困村产业路问题，改善贫困村基础设施，方便415户2145人出行水平。
A184: 168 | B184: 富禄乡 | C184: 富禄村 | D184: 富禄乡富禄村葛亮屯产业路建设工程 | E184: 产业发展 | F184: 新建 | G184: 新建产业路井班-岑牙-岑远-管电白-轮岑，全长约7公里，宽4米 | H184: 2025年3月--2025年12月 | I184: 171.7867 | J184: 154 | K184: 109 | L184: 45 | R184: 1 | T184: 218 | U184: 716 | V184: 23 | W184: 99 | Z184: 农业农村局 | AA184: 农业农村局（乡村振兴综合服务中心） | AB184: 解决富禄村葛亮屯产业发展问题，收益群众736人，杉树1200亩，油茶200亩 | AC184: 改善富禄村葛亮屯的生产生活条件，促进产业发展。
A185: 169 | B185: 梅林乡 | C185: 石碑村 | D185: 梅林乡石碑村广现坡产业路硬化项目 | E185: 产业发展 | F185: 新建 | G185: 硬化路面长5.5公里、路面宽4米、厚20厘米，压实砂石基层厚20厘米；两边培路肩宽各0.5米；合理设置涵洞、边沟、错车道等 | H185: 2025年3月--2025年12月 | I185: 234.7731 | J185: 211 | K185: 166 | L185: 45 | R185: 1 | S185: 0 | T185: 490 | U185: 1849 | V185: 81 | W185: 323 | X185: 9 | Y185: 36 | Z185: 农业农村局 | AA185: 农业农村局（乡村振兴综合服务中心） | AB185: 完成硬化路面长5.5公里，及配套设施建设。 | AC185: 解决贫困村与非贫困村屯级道路通车问题，改善村寨基础设施，方便490户1849人出行水平和发展产业
A186: 170 | B186: 同乐乡 | C186: 良冲村 | D186: 同乐乡良冲村培秀屯岑塔约林区道路建设工程 | E186: 产业发展 | F186: 新建 | G186: 项目总长3.634公里,路基宽为4.5 m，路面宽为3.5 m；采用3 .5m行车道+2×0.5m培土路肩，设置涵洞9道，每道6米，总共54米；全部为新建圆管涵 | H186: 2025年3月--2025年12月 | I186: 145.7553 | J186: 134 | K186: 112 | L186: 22 | S186: 1 | T186: 735 | U186: 3054 | V186: 384 | W186: 1746 | Z186: 农业农村局 | AA186: 农业农村局（乡村振兴综合服务中心） | AB186: 完成硬化路面长4公里，及配套设施建设。方便735户，3054人安全出行。 | AC186: 完善产业基地配套设施，扩大产业种植规模，促进产业提质增效。增加农户收入，壮大村集体经济。方便735户3054人开展产业活动。
A187: 171 | B187: 同乐乡 | C187: 孟寨村 | D187: 同乐乡孟寨村富北亮竹和央友林区道路建设工程 | E187: 产业发展 | F187: 新建 | G187: 项目总长2.155公里、央友林区项目总长1.734公里，路基宽为4.5 m，路面宽为3.5 m；采用3 .5m行车道+2×0.5m培土路肩，富北亮竹设置涵洞4道，每道6米，总共24米、央友林区设置涵洞5道，每道6米，总共30米；全部为新建圆管涵。 | H187: 2025年3月--2025年12月 | I187: 108.3655 | J187: 97 | K187: 70 | L187: 27 | S187: 1 | T187: 699 | U187: 2787 | V187: 238 | W187: 886 | Z187: 农业农村局 | AA187: 农业农村局（乡村振兴综合服务中心） | AB187: 完成林区道路建设4.4公里，及配套设施建设。解决699户2787人产业生产出行困难问题。 | AC187: 完善产业交通设施，解决贫困村村民发展产业出行困难问题，提高村民经济收入，方便699户2787人发展林区经济。带动优质稻256亩，茶叶356亩，杉木587亩，茶油283亩产业提质增效。
A188: 172 | B188: 同乐乡 | C188: 高旁村 | D188: 同乐乡高旁村登弄两茶产业基地新建产业路项目 | E188: 产业发展 | F188: 新建 | G188: 硬化产业路。长3.8公里、路面宽3.5米、厚20厘米，压实砂石基层厚10厘米；两边培路肩宽各0.5米；合理设置涵洞、边沟、错车道等。 | H188: 2025年3月--2025年12月 | I188: 254.678 | J188: 229 | K188: 133 | L188: 96 | S188: 1 | T188: 446 | U188: 1723 | V188: 192 | W188: 800 | Z188: 农业农村局 | AA188: 农业农村局（乡村振兴综合服务中心） | AB188: 完成硬化路面长2.8公里，及配套设施建设。保障446户1723人出行安全。 | AC188: 解决贫困村产业道路通车问题，改善贫困村基础设施，方便446户1723人出行安全，保障村民出行安全，促进村民产业发展。
A189: 县统战部 | C189: 小计 | E189: 小计 | I189: =SUM(I190:I204) -> 1775.196156 | J189: 1650 | K189: 1150 | L189: 0 | M189: 500 | N189: 0 | O189: 0 | P189: 0 | R189: =SUM(R190:R196) -> 1 | S189: 6 | T189: 4461 | U189: 16784 | V189: 1518 | W189: 6249 | X189: 0 | Y189: 0
A190: 173 | B190: 独峒镇 | C190: 岜团村岜团屯 | D190: 独峒镇岜团村民族特色村寨旅游产业发展配套设施项目 | E190: 产业发展 | F190: 新建 | G190: 建设内容：新建人行桥3座，盖板桥①：宽4.5米，长度23米，盖板桥②：宽4.3米，长11米，盖板桥③：宽2.1米，长19.8米；新建新石板路：长1168米，宽1.2/0.9米；新建轻钢+塑木结构游客观光、生产步道：长433米，宽2.1米；太阳能节能路灯25.0盏（5米高杆）。 | H190: 2025年1月-2025年8月 | I190: 246.183984 | J190: =K190+L190+P190+M190+N190+O190 -> 245 | K190: 245 | S190: 1 | T190: 554 | U190: 2254 | V190: 210 | W190: 833 | Z190: 统战部 | AA190: 统战部 | AB190: 完成人行桥3座，石板路1168米，新建轻钢+塑木结构游客观光、生产步道433米，太阳能节能路灯25盏。 | AC190: 项目建成后，将全面提升民族村寨“形、实、魂”，补齐基础设施和公共服务设施短板弱项，依托村寨地域特点和文化特色，积极发展民俗风情旅游，打造特色乡村旅游品牌。推动民族村寨建设成为多姿多彩乡土文化繁荣发展、巩固拓展脱贫攻坚成果和乡村振兴，扎实推进各民族交往交流交融，擦亮的宜居宜业和美村寨，使其成为引领民族村寨高质量发展的标杆示范。 | AD190: 少数民族发展任务
A191: 174 | B191: 八江镇 | C191: 八斗村 | D191: 八江镇八斗村中朝屯冲喜至岗补苗油茶基地产业路硬化建设项目 | E191: 产业发展 | F191: 新建 | G191: 建设内容：产业路硬化路线全长2.6 公里，路基：宽4.5 米，碎石垫层宽4.5 米，厚0.10米，硬化路面：混凝土宽3.5 米，厚0.2米。包括预留排水沟、路肩回填、涵洞、挡土墙等； | H191: 2025年1月-2025年8月 | I191: 152.2265 | J191: 151 | K191: 151 | R191: 1 | T191: 1211 | U191: 4110 | V191: 250 | W191: 1057 | Z191: 统战部 | AA191: 统战部 | AB191: 完成产业路硬化路线全长2.6 公里。 | AC191: 该基地涉及油茶587亩、茶叶202亩、优质稻36亩、杉木1123亩。项目建成后，将有力推动产业发展，大幅提高村民产业生产效率，显著降低农户运输化肥及农副产品的成本。全面改善农业生产与出行安全条件，辐射带动周边农户产业进步。促进各民族团结奋斗、繁荣发展，进一步铸牢中华民族共同体意识，助力乡村振兴。 | AD191: 少数民族发展任务
A192: 175 | B192: 古宜镇 | C192: 泗联村 | D192: 古宜镇泗联村白花屯窍泠屯油茶基地新建产业路项目 | E192: 产业发展 | F192: 新建 | G192: 建设内容：产业路硬化路长0.963公里，路基：宽4.5 米。碎石垫层宽4.5 米，厚0.10米，硬化路面：混凝土宽3.5 米，厚0.2米。新开挖产业路2.937公里，路基：宽4.5米，路面：宽3.5米（碎石垫层厚15cm+磨耗层厚2cm）。包括预留排水沟、路肩回填、涵洞、挡土墙等； | H192: 2025年1月-2025年8月 | I192: 180.6638 | J192: 150 | K192: 150 | S192: 1 | T192: =125+167 -> 292 | U192: =505+594 -> 1099 | V192: =7+16 -> 23 | W192: 74 | Z192: 统战部 | AA192: 统战部 | AB192: 完成产业路硬化路长0.963公里，新开挖产业路2.937公里。 | AC192: 该基地涉及油茶200亩，茶叶1900亩、中草药20亩、南竹130亩、杉木1300亩项目建成后，将有力推动产业发展，大幅提高村民产业生产效率，显著降低农户运输化肥及农副产品的成本。全面改善农业生产与出行安全条件，辐射带动周边农户产业进步。促进各民族团结奋斗、繁荣发展，进一步铸牢中华民族共同体意识，助力乡村振兴。 | AD192: 少数民族发展任务
A193: 176 | B193: 洋溪乡 | C193: 信洞村 | D193: 洋溪乡信洞村翁布至面长农户联营油茶基地产业路硬化项目 | E193: 产业发展 | F193: 新建 | G193: 建设内容：产业路硬化路线全长 3.2095公里，路基：宽4.5 米，碎石垫层宽4.5 米，厚0.15米，硬化路面：混凝土宽3.5 米，厚0.2米。包括预留排水沟、路肩回填、涵洞等； | H193: 2025年1月-2025年8月 | I193: 201.456146 | J193: 200 | K193: 200 | S193: 1 | T193: 478 | U193: 1949 | V193: 271 | W193: 1133 | Z193: 统战部 | AA193: 统战部 | AB193: 完成产业路硬化路长0.963公里。 | AC193: 该基地涉及油茶226亩、茶叶425亩、优质稻420亩、杉木620亩。项目建成后，将有力推动产业发展，大幅提高村民产业生产效率，显著降低农户运输化肥及农副产品的成本。全面改善农业生产与出行安全条件，辐射带动周边农户产业进步。促进各民族团结奋斗、繁荣发展，进一步铸牢中华民族共同体意识，助力乡村振兴。 | AD193: 少数民族发展任务
A194: 177 | B194: 梅林乡 | C194: 梅林村 | D194: 梅林乡梅林村宝花山富硒茶油基地产业道路硬化项目 | E194: 产业发展 | F194: 新建 | G194: 建设内容：产业路硬化路线全长2.473 公里，路基：宽4.5 米，碎石垫层宽4.5 米，厚0.15米，硬化路面：混凝土宽3.5 米，厚0.2米。包括预留排水沟、路肩回填、涵洞等； | H194: 2025年1月-2025年8月 | I194: 189.8083 | J194: 189 | K194: 189 | S194: 1 | T194: 694 | U194: 2554 | V194: 441 | W194: 1806 | Z194: 统战部 | AA194: 统战部 | AB194: 完成产业路硬化路2.473 公里。 | AC194: 该基地涉及油茶860亩、茶叶115亩、杉木1213亩。项目建成后，将有力推动产业发展，大幅提高村民产业生产效率，显著降低农户运输化肥及农副产品的成本。全面改善农业生产与出行安全条件，辐射带动周边农户产业进步。促进各民族团结奋斗、繁荣发展，进一步铸牢中华民族共同体意识，助力乡村振兴。 | AD194: 少数民族发展任务
A195: 178 | B195: 丹洲镇 | C195: 江荷村 | D195: 丹洲镇江荷村大桥山农户联营竹木基地产业路硬化项目 | E195: 产业发展 | F195: 新建 | G195: 建设内容：产业路硬化路线全长1.98公里，路基宽度：4.5 米，碎石垫层宽4.5 米，厚0.15米，硬化路面：混凝土宽3.5 米，厚0.2米。包括预留排水沟、路肩回填、涵洞、挡土墙等； | H195: 2025年1月-2025年8月 | I195: 155.6825 | J195: 155 | K195: 155 | S195: 1 | T195: 497 | U195: 1960 | V195: 41 | W195: 170 | Z195: 统战部 | AA195: 统战部 | AB195: 完成产业路硬化路线1.98公里。 | AC195: 该基地涉及茶叶50亩、杉木2000亩、竹木150亩。项目建成后，将有力推动产业发展，大幅提高村民产业生产效率，显著降低农户运输化肥及农副产品的成本。全面改善农业生产与出行安全条件，辐射带动周边农户产业进步。促进各民族团结奋斗、繁荣发展，进一步铸牢中华民族共同体意识，助力乡村振兴。 | AD195: 少数民族发展任务
A196: 179 | B196: 同乐乡 | C196: 岑甲村 | D196: 同乐乡岑甲村归岳屯小型公益基础设施项目 | E196: 乡村建设行动 | F196: 新建 | G196: 建设内容：新建水毁、护坡共计4幅64.0延米，防撞墩3幅27米，安全防护栏317米。 | H196: 2025年1月-2025年8月 | I196: 30.641959 | J196: 30 | K196: 30 | S196: 1 | T196: 735 | U196: 2858 | V196: 282 | W196: 1176 | Z196: 统战部 | AA196: 统战部 | AB196: 完成水毁、护坡共计5幅64.0延米，防撞墩3幅27米，安全防公路护栏287米。 | AC196: 项目建成后，将对村内交通设施进行全方位的升级完善，极大地改善村民出行条件，为735户共计2858人提供坚实的安全出行保障。促进各民族在生产生活中的交流合作，携手共同团结奋斗，实现共同繁荣发展，进一步铸牢中华民族共同体意识，助力乡村和谐发展。 | AD196: 少数民族发展任务
A197: 180 | B197: 同乐乡 | C197: 归东村 | D197: 三江县同乐乡归东村深坳、高盘农户联营油茶、茶叶、葡萄产业基地产业路硬化项目 | E197: 产业发展 | F197: 新建 | G197: 产业路硬化长2.4公里，路面宽3.5米，厚0.2米，路基宽4.5米，包括预留排水沟、挡土墙、涵管、路肩回填等 | H197: 2025年6月-2025年12月 | I197: 129.23 | J197: =K197+L197+P197+M197+N197+O197 -> 110 | K197: 10 | M197: 100 | S197: 1 | T197: 152 | U197: 653 | V197: 119 | W197: 520 | Z197: 统战部 | AA197: 统战部 | AB197: 完成产业路硬化长2.4公里 | AC197: 项目涉及油茶30亩，茶叶108亩、葡萄338亩、稻田80亩、杉木林100亩。项目建成后，将有力推动产业发展，大幅提高村民产业生产效率，显著降低农户运输化肥及农副产品的成本。全面改善农业生产与出行安全条件，辐射带动周边农户产业进步。促进各民族团结奋斗、繁荣发展，进一步铸牢中华民族共同体意识，助力乡村振兴。 | AD197: 少数民族发展任务
A198: 181 | B198: 良口乡 | C198: 寨塘村 | D198: 三江县良口乡寨塘村河寨屯生产道路硬化项目 | E198: 产业发展 | F198: 新建 | G198: 生产道路硬化长0.8公里，路面宽3.5米，厚0.2米，包括预留排水沟、路肩回填等 | H198: 2025年6月-2025年12月 | I198: 37.27 | J198: 30 | M198: 30 | S198: 1 | T198: 32 | U198: 150 | V198: 12 | W198: 39 | Z198: 统战部 | AA198: 统战部 | AB198: 完成生产道路硬化长0.8公里 | AC198: 项目涉及油茶60亩，茶叶150亩、土豆50亩、稻田45亩、杉木林125亩。项目建成后，将有力推动产业发展，大幅提高村民产业生产效率，显著降低农户运输化肥及农副产品的成本。全面改善农业生产与出行安全条件，辐射带动周边农户产业进步。促进各民族团结奋斗、繁荣发展，进一步铸牢中华民族共同体意识，助力乡村振兴。 | AD198: 少数民族发展任务
A199: 182 | B199: 古宜镇 | C199: 大洲村 | D199: 三江县古宜镇大洲村新村至龙滩角产业路硬化项目 | E199: 产业发展 | F199: 新建 | G199: 产业路硬化长0.5公里，路面宽3.5米，厚0.2米，路基宽4.5米，包括预留排水沟、挡土墙路肩回填等 | H199: 2025年6月-2025年12月 | I199: 47.00 | J199: 40 | M199: 40 | R199: 1 | T199: 85 | U199: 384 | V199: 8 | W199: 40 | Z199: 统战部 | AA199: 统战部 | AB199: 完成产业路硬化长0.5公里 | AC199: 项目涉及茶叶20亩、稻田30亩、杉木林1300亩。项目建成后，将有力推动产业发展，大幅提高村民产业生产效率，显著降低农户运输化肥及农副产品的成本。全面改善农业生产与出行安全条件，辐射带动周边农户产业进步。促进各民族团结奋斗、繁荣发展，进一步铸牢中华民族共同体意识，助力乡村振兴。 | AD199: 少数民族发展任务
A200: 183 | B200: 八江镇 | C200: 马胖村 | D200: 三江县八江镇马胖村岩寨屯庙冲至亚陇产业路硬化项目 | E200: 产业发展 | F200: 新建 | G200: 产业路硬化长1.4公里，路面宽3.5米，厚0.2米，路基宽4.5米，包括预留排水沟、挡土墙、涵管、路肩回填等 | H200: 2025年6月-2025年12月 | I200: 80.90 | J200: 70 | M200: 70 | S200: 1 | T200: 320 | U200: 1165 | V200: 67 | W200: 267 | Z200: 统战部 | AA200: 统战部 | AB200: 完成产业路硬化长1.4公里 | AC200: 项目涉及油茶200亩、茶叶280亩、罗汉果20亩、稻田280亩、杉树600亩。项目建成后，将有力推动产业发展，大幅提高村民产业生产效率，显著降低农户运输化肥及农副产品的成本。全面改善农业生产与出行安全条件，辐射带动周边农户产业进步。促进各民族团结奋斗、繁荣发展，进一步铸牢中华民族共同体意识，助力乡村振兴。 | AD200: 少数民族发展任务
... 164 more rows
